Workbook

Sheet Orçamento
O3: UNIDADE ESCOLAR | X3: CÓDIGO INEP
O4: COLÉGIO ESTADUAL MARIA EULÁLIA DE JESUS PORTILHO | X4: 52005720
A6: Nmax | O6: OBRA | S6: DATA | X6: CIDADE
A7: =MAX($C$18:$C$923) -> 4 | S7: 2020-03-26 | X7: PIRANHAS
O9: CRE | R9: ENDEREÇO | X9: REFERÊNCIA AGETOP
O10: PIRANHAS | R10: AV BRASIL CENTRAL 1440, CENTRO, CEP:76230-000 | X10: DEZ/18 | Y10: ONERADA
O12: ÁREA EXISTENTE (M²) | R12: ÁREA A CONSTRUIR (M²) | S12: ÁREA TOTAL CONSTRUÍDA (M²) | X12: REFERÊNCIA SINAPI
O13: 2832.84 | R13: 356.85 | S13: 3189.69 | X13: AGO/19 | Y13: ONERADA
L15: FILTRO | O15: PLANILHA ORÇAMENTÁRIA
A16: Nível E | B16: Save Nivel | C16: Nível C | D16: Altura | E16: n1 | F16: n2 | G16: n3 | H16: n4 | I16: n5 | J16: Czero | K16: Cnível | L16: ↓ | M16: Nível | N16: Nível Corrigido | O16: ITEM | P16: TABELA | Q16: CODIGO | R16: DESCRIÇÃO DOS SERVIÇOS | S16: UNID | T16: QUANT | U16: REPET | V16: QUANT TOTAL | W16: MAT | X16: MO | Y16: VALOR UNIT | Z16: VALOR TOTAL | AA16: OBSERVAÇÕES¹
A17: =CHOOSE(1+LOG(1+2*(ORÇAMENTO.Nivel="Nível 1")+4*(ORÇAMENTO.Nivel="Nível 2")+8*(ORÇAMENTO.Nivel="Nível 3")+16*(ORÇAMENTO.Nivel="Nível 4")+32*(ORÇAMENTO.Nivel="Serviço"),2),0,1,2,3,4,"S") -> S | B17: =IF(OR(C17="s",C17=0),OFFSET(B17,-1,0),C17) -> Save Nivel | C17: =IF(OFFSET(C17,-1,0)="L",1,IF(OFFSET(C17,-1,0)=1,2,IF(OR(A17="s",A17=0),"S",IF(AND(OFFSET(C17,-1,0)=2,A17=4),3,IF(AND(OR(OFFSET(C17,-1,0)="s",OFFSET(C17,-1,0)=0),A17<>"s",A17>OFFSET(B17,-1,0)),OFFSET(B17,-1,0),A17))))) -> S | D17: =IF(OR(C17="S",C17=0),0,IF(ISERROR(K17),J17,SMALL(J17:K17,1))) -> 0 | E17: =IF($C17=1,OFFSET(E17,-1,0)+1,OFFSET(E17,-1,0)) -> n1 | F17: =IF($C17=1,0,IF($C17=2,OFFSET(F17,-1,0)+1,OFFSET(F17,-1,0))) -> n2 | G17: =IF(AND($C17<=2,$C17<>0),0,IF($C17=3,OFFSET(G17,-1,0)+1,OFFSET(G17,-1,0))) -> n3 | H17: =IF(AND($C17<=3,$C17<>0),0,IF($C17=4,OFFSET(H17,-1,0)+1,OFFSET(H17,-1,0))) -> n4 | I17: =IF(AND($C17<=4,$C17<>0),0,IF(AND($C17="S",$Y17>0),OFFSET(I17,-1,0)+1,OFFSET(I17,-1,0))) -> n5 | J17: =IF(OR($C17="S",$C17=0),0,MATCH(0,OFFSET($D17,1,$C17,ROW($C$923)-ROW($C17)),0)) -> 0 | K17: =IF(OR($C17="S",$C17=0),0,MATCH(OFFSET($D17,0,$C17)+1,OFFSET($D17,1,$C17,ROW($C$923)-ROW($C17)),0)) -> 0 | M17: Serviço | N17: Serviço | O17: - | P17: SINAPI | R17: (sem código) | S17: - | U17: REPET | V17: - | W17: 0 | X17: 0 | Y17: 0 | Z17: -
A18: 0 | C18: L | D18: =COUNTA(OFFSET(D18,1,0):D$923) -> 904 | E18: =LEFT(O19,1)-1 -> 0 | L18: F | M18: LOTE | N18: LOTE | O18: - COLÉGIO ESTADUAL MARIA EULÁLIA DE JESUS PORTILHO | Z18: 0
A19: 1 | B19: =IF(OR(C19="s",C19=0),OFFSET(B19,-1,0),C19) -> 1 | C19: =IF(OFFSET(C19,-1,0)="L",1,IF(OFFSET(C19,-1,0)=1,2,IF(OR(A19="s",A19=0),"S",IF(AND(OFFSET(C19,-1,0)=2,A19=4),3,IF(AND(OR(OFFSET(C19,-1,0)="s",OFFSET(C19,-1,0)=0),A19<>"s",A19>OFFSET(B19,-1,0)),OFFSET(B19,-1,0),A19))))) -> 1 | D19: =IF(OR(C19="S",C19=0),0,IF(ISERROR(K19),J19,SMALL(J19:K19,1))) -> 432 | E19: =IF($C19=1,OFFSET(E19,-1,0)+1,OFFSET(E19,-1,0)) -> 1 | F19: =IF($C19=1,0,IF($C19=2,OFFSET(F19,-1,0)+1,OFFSET(F19,-1,0))) -> 0 | G19: =IF(AND($C19<=2,$C19<>0),0,IF($C19=3,OFFSET(G19,-1,0)+1,OFFSET(G19,-1,0))) -> 0 | H19: =IF(AND($C19<=3,$C19<>0),0,IF($C19=4,OFFSET(H19,-1,0)+1,OFFSET(H19,-1,0))) -> 0 | I19: 0 | J19: =IF(OR($C19="S",$C19=0),0,MATCH(0,OFFSET($D19,1,$C19,ROW($C$923)-ROW($C19)),0)) -> 904 | K19: =IF(OR($C19="S",$C19=0),0,MATCH(OFFSET($D19,0,$C19)+1,OFFSET($D19,1,$C19,ROW($C$923)-ROW($C19)),0)) -> 432 | L19: F | M19: Nível 1 | N19: Nível 1 | O19: 1. | P19: AGETOP | R19: REFORMA | S19: UN | T19: 1 | U19: 1 | V19: 1 | Y19: 0 | Z19: 0
A20: 2 | B20: =IF(OR(C20="s",C20=0),OFFSET(B20,-1,0),C20) -> 2 | C20: =IF(OFFSET(C20,-1,0)="L",1,IF(OFFSET(C20,-1,0)=1,2,IF(OR(A20="s",A20=0),"S",IF(AND(OFFSET(C20,-1,0)=2,A20=4),3,IF(AND(OR(OFFSET(C20,-1,0)="s",OFFSET(C20,-1,0)=0),A20<>"s",A20>OFFSET(B20,-1,0)),OFFSET(B20,-1,0),A20))))) -> 2 | D20: =IF(OR(C20="S",C20=0),0,IF(ISERROR(K20),J20,SMALL(J20:K20,1))) -> 46 | E20: =IF($C20=1,OFFSET(E20,-1,0)+1,OFFSET(E20,-1,0)) -> 1 | F20: =IF($C20=1,0,IF($C20=2,OFFSET(F20,-1,0)+1,OFFSET(F20,-1,0))) -> 1 | G20: =IF(AND($C20<=2,$C20<>0),0,IF($C20=3,OFFSET(G20,-1,0)+1,OFFSET(G20,-1,0))) -> 0 | H20: =IF(AND($C20<=3,$C20<>0),0,IF($C20=4,OFFSET(H20,-1,0)+1,OFFSET(H20,-1,0))) -> 0 | I20: 0 | J20: 431 | K20: 46 | M20: Nível 2 | N20: Nível 2 | O20: - | P20: AGETOP | R20: SERVIÇOS PRELIMINARES | S20: - | U20: 1 | V20: - | Y20: 0 | Z20: 0
A21: 3 | B21: 3 | C21: 3 | D21: 10 | E21: 1 | F21: 1 | G21: 1 | H21: 0 | I21: 0 | J21: 45 | K21: 10 | M21: Nível 3 | N21: Nível 3 | O21: - | P21: SINAPI | R21: BLOCO 4 (CASA DO ZELADOR) | S21: - | U21: 1 | V21: - | W21: 0 | X21: 0 | Y21: 0 | Z21: 0
A22: S | B22: 3 | C22: S | D22: 0 | E22: 1 | F22: 1 | G22: 1 | H22: 0 | I22: 0 | J22: 0 | K22: 0 | M22: Serviço | N22: Serviço | O22: - | P22: SINAPI | Q22: 97622 | R22: DEMOLIÇÃO DE ALVENARIA DE BLOCO FURADO, DE FORMA MANUAL, SEM REAPROVEITAMENTO. AF_12/2017 | S22: M3 | T22: 14.6415 | U22: 1 | V22: 14.6415 | Y22: 0 | Z22: 0 | AA22: Referência: AGETOP - 20118
A23: S | B23: 3 | C23: S | D23: 0 | E23: 1 | F23: 1 | G23: 1 | H23: 0 | I23: 0 | J23: 0 | K23: 0 | M23: Serviço | N23: Serviço | O23: - | P23: AGETOP | Q23: 20103 | R23: DEMOLIÇÃO ESTRUTURA EM MADEIRA TELHADO C/ TRANSP. ATÉ CB. E CARGA | S23: m2 | T23: 118.45 | U23: 1 | V23: 118.45 | Y23: 0 | Z23: 0
A24: S | B24: 3 | C24: S | D24: 0 | E24: 1 | F24: 1 | G24: 1 | H24: 0 | I24: 0 | J24: 0 | K24: 0 | M24: Serviço | N24: Serviço | O24: - | P24: AGETOP | Q24: 20136 | R24: DEMOLICAO DE CAIBROS E RIPAS C/ TRANSP. ATÉ CB. E CARGA | S24: m2 | T24: 118.45 | U24: 1 | V24: 118.45 | Y24: 0 | Z24: 0
A25: S | B25: 3 | C25: S | D25: 0 | E25: 1 | F25: 1 | G25: 1 | H25: 0 | I25: 0 | J25: 0 | K25: 0 | M25: Serviço | N25: Serviço | O25: - | P25: AGETOP | Q25: 20101 | R25: DEMOLICAO COBERTURA TELHA CERAMICA C/ TRANSP. ATÉ CB. E CARGA | S25: m2 | T25: 118.45 | U25: 1 | V25: 118.45 | Y25: 0 | Z25: 0
A26: S | B26: 3 | C26: S | D26: 0 | E26: 1 | F26: 1 | G26: 1 | H26: 0 | I26: 0 | J26: 0 | K26: 0 | M26: Serviço | N26: Serviço | O26: - | P26: AGETOP | Q26: 20109 | R26: DEM.PISO CIMENT.SOBRE LASTRO CONC.C/TR.ATE CB. E CARGA | S26: m2 | T26: 111.77 | U26: 1 | V26: 111.77 | Y26: 0 | Z26: 0
A27: S | B27: 3 | C27: S | D27: 0 | E27: 1 | F27: 1 | G27: 1 | H27: 0 | I27: 0 | J27: 0 | K27: 0 | M27: Serviço | N27: Serviço | O27: - | P27: SINAPI | Q27: 97644 | R27: REMOÇÃO DE PORTAS, DE FORMA MANUAL, SEM REAPROVEITAMENTO. AF_12/2017 | S27: M2 | T27: 6.72 | U27: 1 | V27: 6.72 | Y27: 0 | Z27: 0 | AA27: Referência: AGETOP - 20106
A28: S | B28: 3 | C28: S | D28: 0 | E28: 1 | F28: 1 | G28: 1 | H28: 0 | I28: 0 | J28: 0 | K28: 0 | M28: Serviço | N28: Serviço | O28: - | P28: AGETOP | Q28: 20137 | R28: DEMOLIÇAO BACIA SANITARIA C/ TRANSP. ATÉ CB. E CARGA | S28: Un | T28: 1 | U28: 1 | V28: 1 | Y28: 0 | Z28: 0
A29: S | B29: 3 | C29: S | D29: 0 | E29: 1 | F29: 1 | G29: 1 | H29: 0 | I29: 0 | J29: 0 | K29: 0 | M29: Serviço | N29: Serviço | O29: - | P29: AGETOP | Q29: 20141 | R29: DEMOLIÇAO DE CAIXA DESCARGA EXTERNA C/ TRANSP. ATÉ CB. E CARGA | S29: Un | T29: 1 | U29: 1 | V29: 1 | Y29: 0 | Z29: 0
A30: S | B30: 3 | C30: S | D30: 0 | E30: 1 | F30: 1 | G30: 1 | H30: 0 | I30: 0 | J30: 0 | K30: 0 | M30: Serviço | N30: Serviço | O30: - | P30: AGETOP | Q30: 20163 | R30: DEMOLIÇÃO DAS INSTALAÇÕES HIDROSANITÁRIAS E AFINS C/ TRANSP. ATÉ CB. E CARGA | S30: H | T30: 2 | U30: 1 | V30: 2 | Y30: 0 | Z30: 0
A31: 3 | B31: 3 | C31: 3 | D31: 3 | E31: 1 | F31: 1 | G31: 2 | H31: 0 | I31: 0 | J31: 35 | K31: 3 | M31: Nível 3 | N31: Nível 3 | O31: - | P31: SINAPI | R31: READEQUAÇÕES DE ALGUNS AMBIENTES | S31: - | U31: 1 | V31: - | Y31: 0 | Z31: 0
A32: S | B32: 3 | C32: S | D32: 0 | E32: 1 | F32: 1 | G32: 2 | H32: 0 | I32: 0 | J32: 0 | K32: 0 | M32: Serviço | N32: Serviço | O32: - | P32: SINAPI | Q32: 97622 | R32: DEMOLIÇÃO DE ALVENARIA DE BLOCO FURADO, DE FORMA MANUAL, SEM REAPROVEITAMENTO. AF_12/2017 | S32: M3 | T32: 4.3065 | U32: 1 | V32: 4.3065 | Y32: 0 | Z32: 0 | AA32: Referência: AGETOP - 20118
A33: S | B33: 3 | C33: S | D33: 0 | E33: 1 | F33: 1 | G33: 2 | H33: 0 | I33: 0 | J33: 0 | K33: 0 | M33: Serviço | N33: Serviço | O33: - | P33: SINAPI | Q33: 97644 | R33: REMOÇÃO DE PORTAS, DE FORMA MANUAL, SEM REAPROVEITAMENTO. AF_12/2017 | S33: M2 | T33: 10.92 | U33: 1 | V33: 10.92 | Y33: 0 | Z33: 0 | AA33: Referência: AGETOP - 20106
A34: 3 | B34: 3 | C34: 3 | D34: 6 | E34: 1 | F34: 1 | G34: 3 | H34: 0 | I34: 0 | J34: 32 | K34: 6 | M34: Nível 3 | N34: Nível 3 | O34: - | P34: SINAPI | R34: READEQUAÇÕES COZINHA ATUAL PARA SALA DE AULA | S34: - | U34: 1 | V34: - | Y34: 0 | Z34: 0
A35: S | B35: 3 | C35: S | D35: 0 | E35: 1 | F35: 1 | G35: 3 | H35: 0 | I35: 0 | J35: 0 | K35: 0 | M35: Serviço | N35: Serviço | O35: - | P35: SINAPI | Q35: 97622 | R35: DEMOLIÇÃO DE ALVENARIA DE BLOCO FURADO, DE FORMA MANUAL, SEM REAPROVEITAMENTO. AF_12/2017 | S35: M3 | T35: 8.0295 | U35: 1 | V35: 8.0295 | Y35: 0 | Z35: 0 | AA35: Referência: AGETOP - 20118
A36: S | B36: 3 | C36: S | D36: 0 | E36: 1 | F36: 1 | G36: 3 | H36: 0 | I36: 0 | J36: 0 | K36: 0 | M36: Serviço | N36: Serviço | O36: - | P36: AGETOP | Q36: 20109 | R36: DEM.PISO CIMENT.SOBRE LASTRO CONC.C/TR.ATE CB. E CARGA | S36: m2 | T36: 59.77 | U36: 1 | V36: 59.77 | Y36: 0 | Z36: 0
A37: S | B37: 3 | C37: S | D37: 0 | E37: 1 | F37: 1 | G37: 3 | H37: 0 | I37: 0 | J37: 0 | K37: 0 | M37: Serviço | N37: Serviço | O37: - | P37: AGETOP | Q37: 20163 | R37: DEMOLIÇÃO DAS INSTALAÇÕES HIDROSANITÁRIAS E AFINS C/ TRANSP. ATÉ CB. E CARGA | S37: H | T37: 8 | U37: 1 | V37: 8 | Y37: 0 | Z37: 0
A38: S | B38: 3 | C38: S | D38: 0 | E38: 1 | F38: 1 | G38: 3 | H38: 0 | I38: 0 | J38: 0 | K38: 0 | M38: Serviço | N38: Serviço | O38: - | P38: SINAPI | Q38: 97633 | R38: DEMOLIÇÃO DE REVESTIMENTO CERÂMICO, DE FORMA MANUAL, SEM REAPROVEITAMENTO. AF_12/2017 | S38: M2 | T38: 66.66 | U38: 1 | V38: 66.66 | Y38: 0 | Z38: 0 | AA38: Referência: AGETOP - 20115
A39: S | B39: 3 | C39: S | D39: 0 | E39: 1 | F39: 1 | G39: 3 | H39: 0 | I39: 0 | J39: 0 | K39: 0 | M39: Serviço | N39: Serviço | O39: - | P39: SINAPI | Q39: 97644 | R39: REMOÇÃO DE PORTAS, DE FORMA MANUAL, SEM REAPROVEITAMENTO. AF_12/2017 | S39: M2 | T39: 5.04 | U39: 1 | V39: 5.04 | Y39: 0 | Z39: 0 | AA39: Referência: AGETOP - 20106
A40: 3 | B40: 3 | C40: 3 | D40: 3 | E40: 1 | F40: 1 | G40: 4 | H40: 0 | I40: 0 | J40: 26 | K40: 3 | M40: Nível 3 | N40: Nível 3 | O40: - | P40: SINAPI | R40: REFORMA COBERTURA | S40: - | U40: 1 | V40: - | Y40: 0 | Z40: 0
A41: S | B41: 3 | C41: S | D41: 0 | E41: 1 | F41: 1 | G41: 4 | H41: 0 | I41: 0 | J41: 0 | K41: 0 | M41: Serviço | N41: Serviço | O41: - | P41: AGETOP | Q41: 20101 | R41: DEMOLICAO COBERTURA TELHA CERAMICA C/ TRANSP. ATÉ CB. E CARGA | S41: m2 | T41: 543.73 | U41: 1 | V41: 543.73 | Y41: 0 | Z41: 0
A42: S | B42: 3 | C42: S | D42: 0 | E42: 1 | F42: 1 | G42: 4 | H42: 0 | I42: 0 | J42: 0 | K42: 0 | M42: Serviço | N42: Serviço | O42: - | P42: AGETOP | Q42: 20104 | R42: DEMOLIÇÃO DE RIPAS C/ TRANSP. ATÉ CB. E CARGA | S42: m2 | T42: 543.73 | U42: 1 | V42: 543.73 | Y42: 0 | Z42: 0
A43: 3 | B43: 3 | C43: 3 | D43: 3 | E43: 1 | F43: 1 | G43: 5 | H43: 0 | I43: 0 | J43: 23 | K43: 3 | M43: Nível 3 | N43: Nível 3 | O43: - | P43: SINAPI | R43: REFORMA DO FORRO | S43: - | U43: 1 | V43: - | Y43: 0 | Z43: 0
A44: S | B44: 3 | C44: S | D44: 0 | E44: 1 | F44: 1 | G44: 5 | H44: 0 | I44: 0 | J44: 0 | K44: 0 | M44: Serviço | N44: Serviço | O44: - | P44: SINAPI | Q44: 97640 | R44: REMOÇÃO DE FORROS DE DRYWALL, PVC E FIBROMINERAL, DE FORMA MANUAL, SEM REAPROVEITAMENTO. AF_12/2017 | S44: M2 | T44: 781.98 | U44: 1 | V44: 781.98 | Y44: 0 | Z44: 0
A45: S | B45: 3 | C45: S | D45: 0 | E45: 1 | F45: 1 | G45: 5 | H45: 0 | I45: 0 | J45: 0 | K45: 0 | M45: Serviço | N45: Serviço | O45: - | P45: SINAPI | Q45: 97642 | R45: REMOÇÃO DE TRAMA METÁLICA OU DE MADEIRA PARA FORRO, DE FORMA MANUAL, SEM REAPROVEITAMENTO. AF_12/2017 | S45: M2 | T45: 781.89 | U45: 1 | V45: 781.89 | Y45: 0 | Z45: 0
A46: 3 | B46: 3 | C46: 3 | D46: 9 | E46: 1 | F46: 1 | G46: 6 | H46: 0 | I46: 0 | J46: 20 | K46: 9 | M46: Nível 3 | N46: Nível 3 | O46: - | P46: SINAPI | R46: BANHEIROS | S46: - | U46: 1 | V46: - | Y46: 0 | Z46: 0
A47: S | B47: 3 | C47: S | D47: 0 | E47: 1 | F47: 1 | G47: 6 | H47: 0 | I47: 0 | J47: 0 | K47: 0 | M47: Serviço | N47: Serviço | O47: - | P47: AGETOP | Q47: 20111 | R47: DEM.PISO CERAM.SOBRE LASTRO CONC.C/TR.CB.E CARGA | S47: m2 | T47: 47.38 | U47: 1 | V47: 47.38 | Y47: 0 | Z47: 0
A48: S | B48: 3 | C48: S | D48: 0 | E48: 1 | F48: 1 | G48: 6 | H48: 0 | I48: 0 | J48: 0 | K48: 0 | M48: Serviço | N48: Serviço | O48: - | P48: SINAPI | Q48: 97633 | R48: DEMOLIÇÃO DE REVESTIMENTO CERÂMICO, DE FORMA MANUAL, SEM REAPROVEITAMENTO. AF_12/2017 | S48: M2 | T48: 189.28 | U48: 1 | V48: 189.28 | Y48: 0 | Z48: 0 | AA48: Referência: AGETOP - 20115
A49: S | B49: 3 | C49: S | D49: 0 | E49: 1 | F49: 1 | G49: 6 | H49: 0 | I49: 0 | J49: 0 | K49: 0 | M49: Serviço | N49: Serviço | O49: - | P49: AGETOP | Q49: 20137 | R49: DEMOLIÇAO BACIA SANITARIA C/ TRANSP. ATÉ CB. E CARGA | S49: Un | T49: 9 | U49: 1 | V49: 9 | Y49: 0 | Z49: 0
A50: S | B50: 3 | C50: S | D50: 0 | E50: 1 | F50: 1 | G50: 6 | H50: 0 | I50: 0 | J50: 0 | K50: 0 | M50: Serviço | N50: Serviço | O50: - | P50: AGETOP | Q50: 20140 | R50: DEMOLIÇAO DE VÁLVULA DE DESCARGA C/ TRANSP. ATÉ CB. E CARGA | S50: Un | T50: 9 | U50: 1 | V50: 9 | Y50: 0 | Z50: 0
A51: S | B51: 3 | C51: S | D51: 0 | E51: 1 | F51: 1 | G51: 6 | H51: 0 | I51: 0 | J51: 0 | K51: 0 | M51: Serviço | N51: Serviço | O51: - | P51: SINAPI | Q51: 97644 | R51: REMOÇÃO DE PORTAS, DE FORMA MANUAL, SEM REAPROVEITAMENTO. AF_12/2017 | S51: M2 | T51: 18 | U51: 1 | V51: 18 | Y51: 0 | Z51: 0 | AA51: Referência: AGETOP - 20106
A52: S | B52: 3 | C52: S | D52: 0 | E52: 1 | F52: 1 | G52: 6 | H52: 0 | I52: 0 | J52: 0 | K52: 0 | M52: Serviço | N52: Serviço | O52: - | P52: AGETOP | Q52: 20163 | R52: DEMOLIÇÃO DAS INSTALAÇÕES HIDROSANITÁRIAS E AFINS C/ TRANSP. ATÉ CB. E CARGA | S52: H | T52: 8 | U52: 1 | V52: 8 | Y52: 0 | Z52: 0
A53: S | B53: 3 | C53: S | D53: 0 | E53: 1 | F53: 1 | G53: 6 | H53: 0 | I53: 0 | J53: 0 | K53: 0 | M53: Serviço | N53: Serviço | O53: - | P53: SINAPI | Q53: 97622 | R53: DEMOLIÇÃO DE ALVENARIA DE BLOCO FURADO, DE FORMA MANUAL, SEM REAPROVEITAMENTO. AF_12/2017 | S53: M3 | T53: 1.2135 | U53: 1 | V53: 1.2135 | Y53: 0 | Z53: 0 | AA53: Referência: AGETOP - 20118
A54: S | B54: 3 | C54: S | D54: 0 | E54: 1 | F54: 1 | G54: 6 | H54: 0 | I54: 0 | J54: 0 | K54: 0 | M54: Serviço | N54: Serviço | O54: - | P54: AGETOP | Q54: 20139 | R54: DEMOLIÇAO DE BANCADAS C/ TRANSP. ATÉ CB. E CARGA | S54: m2 | T54: 1.33 | U54: 1 | V54: 1.33 | Y54: 0 | Z54: 0
A55: 3 | B55: 3 | C55: 3 | D55: 3 | E55: 1 | F55: 1 | G55: 7 | H55: 0 | I55: 0 | J55: 11 | K55: 3 | M55: Nível 3 | N55: Nível 3 | O55: - | P55: SINAPI | R55: ESCOVODROMO | S55: - | U55: 1 | V55: - | Y55: 0 | Z55: 0
A56: S | B56: 3 | C56: S | D56: 0 | E56: 1 | F56: 1 | G56: 7 | H56: 0 | I56: 0 | J56: 0 | K56: 0 | M56: Serviço | N56: Serviço | O56: - | P56: AGETOP | Q56: 20163 | R56: DEMOLIÇÃO DAS INSTALAÇÕES HIDROSANITÁRIAS E AFINS C/ TRANSP. ATÉ CB. E CARGA | S56: H | T56: 2 | U56: 1 | V56: 2 | Y56: 0 | Z56: 0
A57: S | B57: 3 | C57: S | D57: 0 | E57: 1 | F57: 1 | G57: 7 | H57: 0 | I57: 0 | J57: 0 | K57: 0 | M57: Serviço | N57: Serviço | O57: - | P57: SINAPI | Q57: 97633 | R57: DEMOLIÇÃO DE REVESTIMENTO CERÂMICO, DE FORMA MANUAL, SEM REAPROVEITAMENTO. AF_12/2017 | S57: M2 | T57: 7 | U57: 1 | V57: 7 | Y57: 0 | Z57: 0 | AA57: Referência: AGETOP - 20115
A58: 3 | B58: 3 | C58: 3 | D58: 3 | E58: 1 | F58: 1 | G58: 8 | H58: 0 | I58: 0 | J58: 8 | K58: 3 | M58: Nível 3 | N58: Nível 3 | O58: - | P58: SINAPI | R58: DEPOSITO PÁTIO | S58: - | U58: 1 | V58: - | Y58: 0 | Z58: 0
A59: S | B59: 3 | C59: S | D59: 0 | E59: 1 | F59: 1 | G59: 8 | H59: 0 | I59: 0 | J59: 0 | K59: 0 | M59: Serviço | N59: Serviço | O59: - | P59: AGETOP | Q59: 20111 | R59: DEM.PISO CERAM.SOBRE LASTRO CONC.C/TR.CB.E CARGA | S59: m2 | T59: 6.8 | U59: 1 | V59: 6.8 | Y59: 0 | Z59: 0
A60: S | B60: 3 | C60: S | D60: 0 | E60: 1 | F60: 1 | G60: 8 | H60: 0 | I60: 0 | J60: 0 | K60: 0 | M60: Serviço | N60: Serviço | O60: - | P60: SINAPI | Q60: 97633 | R60: DEMOLIÇÃO DE REVESTIMENTO CERÂMICO, DE FORMA MANUAL, SEM REAPROVEITAMENTO. AF_12/2017 | S60: M2 | T60: 45.6 | U60: 1 | V60: 45.6 | Y60: 0 | Z60: 0 | AA60: Referência: AGETOP - 20115
A61: 3 | B61: 3 | C61: 3 | D61: 2 | E61: 1 | F61: 1 | G61: 9 | H61: 0 | I61: 0 | J61: 5 | K61: 2 | M61: Nível 3 | N61: Nível 3 | O61: - | P61: SINAPI | R61: CALÇADA ACESSÍVEL | S61: - | U61: 1 | V61: - | Y61: 0 | Z61: 0
A62: S | B62: 3 | C62: S | D62: 0 | E62: 1 | F62: 1 | G62: 9 | H62: 0 | I62: 0 | J62: 0 | K62: 0 | M62: Serviço | N62: Serviço | O62: - | P62: AGETOP | Q62: 20109 | R62: DEM.PISO CIMENT.SOBRE LASTRO CONC.C/TR.ATE CB. E CARGA | S62: m2 | T62: 309.49 | U62: 1 | V62: 309.49 | Y62: 0 | Z62: 0
A63: 3 | B63: =IF(OR(C63="s",C63=0),OFFSET(B63,-1,0),C63) -> 3 | C63: =IF(OFFSET(C63,-1,0)="L",1,IF(OFFSET(C63,-1,0)=1,2,IF(OR(A63="s",A63=0),"S",IF(AND(OFFSET(C63,-1,0)=2,A63=4),3,IF(AND(OR(OFFSET(C63,-1,0)="s",OFFSET(C63,-1,0)=0),A63<>"s",A63>OFFSET(B63,-1,0)),OFFSET(B63,-1,0),A63))))) -> 3 | D63: =IF(OR(C63="S",C63=0),0,IF(ISERROR(K63),J63,SMALL(J63:K63,1))) -> 3 | E63: 1 | F63: 1 | G63: 10 | H63: 0 | I63: 0 | J63: 3 | M63: Nível 3 | N63: Nível 3 | O63: - | P63: SINAPI | R63: REFORMA GERAL | S63: - | U63: 1 | V63: - | Y63: 0 | Z63: 0
A64: S | B64: 3 | C64: S | D64: 0 | E64: 1 | F64: 1 | G64: 10 | H64: 0 | I64: 0 | J64: 0 | K64: 0 | M64: Serviço | N64: Serviço | O64: - | P64: AGETOP | Q64: 20162 | R64: DEMOLIÇÃO DAS INSTALAÇÕES ELÉTRICAS E AFINS C/ TRANSP. ATÉ CB. E CARGA | S64: H | T64: 24 | U64: 1 | V64: 24 | Y64: 0 | Z64: 0
A65: S | B65: 3 | C65: S | D65: 0 | E65: 1 | F65: 1 | G65: 10 | H65: 0 | I65: 0 | J65: 0 | K65: 0 | M65: Serviço | N65: Serviço | O65: - | P65: SINAPI | Q65: 74209/1 | R65: PLACA DE OBRA EM CHAPA DE ACO GALVANIZADO | S65: M2 | T65: 4.5 | U65: 1 | V65: 4.5 | Y65: 0 | Z65: 0 | AA65: Referência: AGETOP - 21301
A66: 2 | B66: 2 | C66: 2 | D66: 2 | E66: 1 | F66: 2 | G66: 0 | H66: 0 | I66: 0 | J66: 385 | K66: 2 | M66: Nível 2 | N66: Nível 2 | O66: - | P66: AGETOP | R66: TRANSPORTES | S66: - | U66: 1 | V66: - | Y66: 0 | Z66: 0
A67: S | B67: 2 | C67: S | D67: 0 | E67: 1 | F67: 2 | G67: 0 | H67: 0 | I67: 0 | J67: 0 | K67: 0 | M67: Serviço | N67: Serviço | O67: - | P67: SINAPI | Q67: 72900 | R67: TRANSPORTE DE ENTULHO COM CAMINHAO BASCULANTE 6 M3, RODOVIA PAVIMENTADA, DMT 0,5 A 1,0 KM | S67: M3 | T67: 51.7676 | U67: 1 | V67: 51.7676 | Y67: 0 | Z67: 0
A68: 2 | B68: 2 | C68: 2 | D68: 7 | E68: 1 | F68: 3 | G68: 0 | H68: 0 | I68: 0 | J68: 383 | K68: 7 | M68: Nível 2 | N68: Nível 2 | O68: - | P68: AGETOP | R68: SERVIÇO EM TERRA | S68: - | U68: 1 | V68: - | Y68: 0 | Z68: 0
A69: 3 | B69: 3 | C69: 3 | D69: 3 | E69: 1 | F69: 3 | G69: 1 | H69: 0 | I69: 0 | J69: 6 | K69: 3 | M69: Nível 3 | N69: Nível 3 | O69: - | R69: CALÇADA ACESSIVEL | S69: - | U69: 1 | V69: - | Y69: 0 | Z69: 0
A70: S | B70: 3 | C70: S | D70: 0 | E70: 1 | F70: 3 | G70: 1 | H70: 0 | I70: 0 | J70: 0 | K70: 0 | M70: Serviço | N70: Serviço | O70: - | P70: AGETOP | Q70: 20190 | R70: LIMPEZA MECANICA DE TERRENO | S70: m2 | T70: 449.8 | U70: 1 | V70: 449.8 | Y70: 0 | Z70: 0 | AA70: Referência: AGETOP - 41008
A71: S | B71: 3 | C71: S | D71: 0 | E71: 1 | F71: 3 | G71: 1 | H71: 0 | I71: 0 | J71: 0 | K71: 0 | M71: Serviço | N71: Serviço | O71: - | P71: AGETOP | Q71: 41002 | R71: APILOAMENTO | S71: m2 | T71: 759.29 | U71: 1 | V71: 759.29 | Y71: 0 | Z71: 0
A72: 3 | B72: 3 | C72: 3 | D72: 3 | E72: 1 | F72: 3 | G72: 2 | H72: 0 | I72: 0 | J72: 3 | K72: 128 | M72: Nível 3 | N72: Nível 3 | O72: - | R72: REFORMA ELÉTRICA | S72: - | U72: 1 | V72: - | Y72: 0 | Z72: 0
A73: =CHOOSE(1+LOG(1+2*(ORÇAMENTO.Nivel="Nível 1")+4*(ORÇAMENTO.Nivel="Nível 2")+8*(ORÇAMENTO.Nivel="Nível 3")+16*(ORÇAMENTO.Nivel="Nível 4")+32*(ORÇAMENTO.Nivel="Serviço"),2),0,1,2,3,4,"S") -> S | B73: 3 | C73: S | D73: 0 | E73: 1 | F73: 3 | G73: 2 | H73: 0 | I73: =IF(AND($C73<=4,$C73<>0),0,IF(AND($C73="S",$Y73>0),OFFSET(I73,-1,0)+1,OFFSET(I73,-1,0))) -> 0 | J73: 0 | K73: 0 | M73: Serviço | N73: Serviço | O73: - | P73: SINAPI | Q73: 93358 | R73: ESCAVAÇÃO MANUAL DE VALA COM PROFUNDIDADE MENOR OU IGUAL A 1,30 M. AF_03/2016 | S73: M3 | T73: 20 | U73: 1 | V73: 20 | Y73: 0 | Z73: 0 | AA73: Referência: AGETOP - 40101
A74: S | B74: 3 | C74: S | D74: 0 | E74: 1 | F74: 3 | G74: 2 | H74: 0 | I74: 0 | J74: 0 | K74: 0 | M74: Serviço | N74: Serviço | O74: - | P74: SINAPI | Q74: 96995 | R74: REATERRO MANUAL APILOADO COM SOQUETE. AF_10/2017 | S74: M3 | T74: 20 | U74: 1 | V74: 20 | Y74: 0 | Z74: 0 | AA74: Referência: AGETOP - 40902
A75: =CHOOSE(1+LOG(1+2*(ORÇAMENTO.Nivel="Nível 1")+4*(ORÇAMENTO.Nivel="Nível 2")+8*(ORÇAMENTO.Nivel="Nível 3")+16*(ORÇAMENTO.Nivel="Nível 4")+32*(ORÇAMENTO.Nivel="Serviço"),2),0,1,2,3,4,"S") -> 2 | B75: =IF(OR(C75="s",C75=0),OFFSET(B75,-1,0),C75) -> 2 | C75: =IF(OFFSET(C75,-1,0)="L",1,IF(OFFSET(C75,-1,0)=1,2,IF(OR(A75="s",A75=0),"S",IF(AND(OFFSET(C75,-1,0)=2,A75=4),3,IF(AND(OR(OFFSET(C75,-1,0)="s",OFFSET(C75,-1,0)=0),A75<>"s",A75>OFFSET(B75,-1,0)),OFFSET(B75,-1,0),A75))))) -> 2 | D75: =IF(OR(C75="S",C75=0),0,IF(ISERROR(K75),J75,SMALL(J75:K75,1))) -> 151 | E75: =IF($C75=1,OFFSET(E75,-1,0)+1,OFFSET(E75,-1,0)) -> 1 | F75: =IF($C75=1,0,IF($C75=2,OFFSET(F75,-1,0)+1,OFFSET(F75,-1,0))) -> 4 | G75: =IF(AND($C75<=2,$C75<>0),0,IF($C75=3,OFFSET(G75,-1,0)+1,OFFSET(G75,-1,0))) -> 0 | H75: =IF(AND($C75<=3,$C75<>0),0,IF($C75=4,OFFSET(H75,-1,0)+1,OFFSET(H75,-1,0))) -> 0 | I75: =IF(AND($C75<=4,$C75<>0),0,IF(AND($C75="S",$Y75>0),OFFSET(I75,-1,0)+1,OFFSET(I75,-1,0))) -> 0 | J75: 376 | K75: 151 | M75: Nível 2 | N75: Nível 2 | O75: - | R75: INSTALAÇÕES ELÉTRICAS | S75: - | U75: 1 | V75: - | Y75: 0 | Z75: 0
A76: 3 | B76: 3 | C76: 3 | D76: 72 | E76: 1 | F76: 4 | G76: 1 | H76: 0 | I76: 0 | J76: 150 | K76: 72 | M76: Nível 3 | N76: Nível 3 | O76: - | P76: SINAPI | R76: SUBESTAÇÃO 75 KVA | S76: - | U76: 1 | V76: - | Y76: 0 | Z76: 0
A77: S | B77: 3 | C77: S | D77: 0 | E77: 1 | F77: 4 | G77: 1 | H77: 0 | I77: 0 | J77: 0 | K77: 0 | M77: Serviço | N77: Serviço | O77: - | P77: SINAPI | Q77: 73767/2 | R77: ALCA PRE-FORMADA DISTRIBUIÇÃO EM ACO RECOBERTO COM ALUMINIO PARA CABO 25MM2, ENCAPADO. FORNECIMENTO E INSTALAÇÃO. | S77: UN | T77: 1 | U77: 1 | V77: 1 | Y77: 0 | Z77: 0
A78: S | B78: 3 | C78: S | D78: 0 | E78: 1 | F78: 4 | G78: 1 | H78: 0 | I78: 0 | J78: 0 | K78: 0 | M78: Serviço | N78: Serviço | O78: - | P78: AGETOP | Q78: 70218 | R78: ARAME DE AÇO GALVANIZADO No. 12 BWG | S78: M | T78: 3 | U78: 1 | V78: 3 | Y78: 0 | Z78: 0
A79: S | B79: 3 | C79: S | D79: 0 | E79: 1 | F79: 4 | G79: 1 | H79: 0 | I79: 0 | J79: 0 | K79: 0 | M79: Serviço | N79: Serviço | O79: - | P79: AGETOP | Q79: 70252 | R79: ARRUELA LISA D=5/16" | S79: Un | T79: 8 | U79: 1 | V79: 8 | Y79: 0 | Z79: 0
A80: S | B80: 3 | C80: S | D80: 0 | E80: 1 | F80: 4 | G80: 1 | H80: 0 | I80: 0 | J80: 0 | K80: 0 | M80: Serviço | N80: Serviço | O80: - | P80: AGETOP | Q80: 70268 | R80: BARRA DE COBRE 2" X 3/16" (2,0865 KG/M) | S80: m | T80: 1.5 | U80: 1 | V80: 1.5 | Y80: 0 | Z80: 0
A81: S | B81: 3 | C81: S | D81: 0 | E81: 1 | F81: 4 | G81: 1 | H81: 0 | I81: 0 | J81: 0 | K81: 0 | M81: Serviço | N81: Serviço | O81: - | P81: AGETOP | Q81: 72630 | R81: TRILHO OU SUPORTE P/BORNE TERMINAL | S81: M | T81: 0.2 | U81: 1 | V81: 0.2 | Y81: 0 | Z81: 0
A82: S | B82: 3 | C82: S | D82: 0 | E82: 1 | F82: 4 | G82: 1 | H82: 0 | I82: 0 | J82: 0 | K82: 0 | M82: Serviço | N82: Serviço | O82: - | P82: SINAPI | Q82: 91175 | R82: FIXAÇÃO DE TUBOS VERTICAIS DE PPR DIÂMETROS MAIORES QUE 75 MM COM ABRAÇADEIRA METÁLICA RÍGIDA TIPO D 3", FIXADA EM PERFILADO EM ALVENARIA. AF_05/2015 | S82: M | T82: 6 | U82: 1 | V82: 6 | Y82: 0 | Z82: 0
A83: S | B83: 3 | C83: S | D83: 0 | E83: 1 | F83: 4 | G83: 1 | H83: 0 | I83: 0 | J83: =IF(OR($C83="S",$C83=0),0,MATCH(0,OFFSET($D83,1,$C83,ROW($C$923)-ROW($C83)),0)) -> 0 | K83: =IF(OR($C83="S",$C83=0),0,MATCH(OFFSET($D83,0,$C83)+1,OFFSET($D83,1,$C83,ROW($C$923)-ROW($C83)),0)) -> 0 | M83: Serviço | N83: Serviço | O83: - | P83: AGETOP | Q83: 70386 | R83: BRAÇO C AÇO GALVANIZADO , CONFORME NTD-17 | S83: un | T83: 1 | U83: 1 | V83: 1 | Y83: 0 | Z83: 0
A84: S | B84: 3 | C84: S | D84: 0 | E84: 1 | F84: 4 | G84: 1 | H84: 0 | I84: 0 | J84: 0 | K84: 0 | M84: Serviço | N84: Serviço | O84: - | P84: AGETOP | Q84: 70422 | R84: BUCHA E ARRUELA METALICA DIAM. 1" | S84: PR | T84: 2 | U84: 1 | V84: 2 | Y84: 0 | Z84: 0
A85: S | B85: 3 | C85: S | D85: 0 | E85: 1 | F85: 4 | G85: 1 | H85: 0 | I85: 0 | J85: 0 | K85: 0 | M85: Serviço | N85: Serviço | O85: - | P85: AGETOP | Q85: 70425 | R85: BUCHA E ARRUELA METALICA DIAM. 2" | S85: PR | T85: 2 | U85: 1 | V85: 2 | Y85: 0 | Z85: 0
A86: S | B86: 3 | C86: S | D86: 0 | E86: 1 | F86: 4 | G86: 1 | H86: 0 | I86: 0 | J86: 0 | K86: 0 | M86: Serviço | N86: Serviço | O86: - | P86: AGETOP | Q86: 70428 | R86: BUCHA E ARRUELA METALICA DIAM. 4" | S86: PR | T86: 4 | U86: 1 | V86: 4 | Y86: 0 | Z86: 0
A87: S | B87: 3 | C87: S | D87: 0 | E87: 1 | F87: 4 | G87: 1 | H87: 0 | I87: 0 | J87: 0 | K87: 0 | M87: Serviço | N87: Serviço | O87: - | P87: AGETOP | Q87: 70378 | R87: BRACADEIRA METALICA TIPO "D" DIAM. 4" | S87: Un | T87: 20 | U87: 1 | V87: 20 | Y87: 0 | Z87: 0
A88: S | B88: 3 | C88: S | D88: 0 | E88: 1 | F88: 4 | G88: 1 | H88: 0 | I88: 0 | J88: 0 | K88: 0 | M88: Serviço | N88: Serviço | O88: - | P88: SINAPI | Q88: 92980 | R88: CABO DE COBRE FLEXÍVEL ISOLADO, 10 MM², ANTI-CHAMA 0,6/1,0 KV, PARA DISTRIBUIÇÃO - FORNECIMENTO E INSTALAÇÃO. AF_12/2015 | S88: M | T88: 5 | U88: 1 | V88: 5 | Y88: 0 | Z88: 0
A89: S | B89: 3 | C89: S | D89: 0 | E89: 1 | F89: 4 | G89: 1 | H89: 0 | I89: 0 | J89: 0 | K89: 0 | M89: Serviço | N89: Serviço | O89: - | P89: SINAPI | Q89: 92984 | R89: CABO DE COBRE FLEXÍVEL ISOLADO, 25 MM², ANTI-CHAMA 0,6/1,0 KV, PARA DISTRIBUIÇÃO - FORNECIMENTO E INSTALAÇÃO. AF_12/2015 | S89: M | T89: 40 | U89: 1 | V89: 40 | Y89: 0 | Z89: 0 | AA89: Referência: AGETOP - 70511
A90: S | B90: 3 | C90: S | D90: 0 | E90: 1 | F90: 4 | G90: 1 | H90: 0 | I90: 0 | J90: 0 | K90: 0 | M90: Serviço | N90: Serviço | O90: - | P90: SINAPI | Q90: 92988 | R90: CABO DE COBRE FLEXÍVEL ISOLADO, 50 MM², ANTI-CHAMA 0,6/1,0 KV, PARA DISTRIBUIÇÃO - FORNECIMENTO E INSTALAÇÃO. AF_12/2015 | S90: M | T90: 160 | U90: 1 | V90: 160 | Y90: 0 | Z90: 0
A91: =CHOOSE(1+LOG(1+2*(ORÇAMENTO.Nivel="Nível 1")+4*(ORÇAMENTO.Nivel="Nível 2")+8*(ORÇAMENTO.Nivel="Nível 3")+16*(ORÇAMENTO.Nivel="Nível 4")+32*(ORÇAMENTO.Nivel="Serviço"),2),0,1,2,3,4,"S") -> S | B91: 3 | C91: S | D91: 0 | E91: 1 | F91: 4 | G91: 1 | H91: 0 | I91: =IF(AND($C91<=4,$C91<>0),0,IF(AND($C91="S",$Y91>0),OFFSET(I91,-1,0)+1,OFFSET(I91,-1,0))) -> 0 | J91: 0 | K91: 0 | M91: Serviço | N91: Serviço | O91: - | P91: AGETOP | Q91: 70543 | R91: CABO DE COBRE NÚ No. 35 MM2 | S91: M | T91: 15 | U91: 1 | V91: 15 | Y91: 0 | Z91: 0
A92: S | B92: 3 | C92: S | D92: 0 | E92: 1 | F92: 4 | G92: 1 | H92: 0 | I92: 0 | J92: 0 | K92: 0 | M92: Serviço | N92: Serviço | O92: - | P92: AGETOP | Q92: 70505 | R92: CABECOTE DE LIGA DE ALUMINIO DIAM. 2.1/2" | S92: Un | T92: 1 | U92: 1 | V92: 1 | Y92: 0 | Z92: 0
A93: S | B93: 3 | C93: S | D93: 0 | E93: 1 | F93: 4 | G93: 1 | H93: 0 | I93: 0 | J93: 0 | K93: 0 | M93: Serviço | N93: Serviço | O93: - | P93: SINAPI | Q93: 96977 | R93: CORDOALHA DE COBRE NU 50 MM², ENTERRADA, SEM ISOLADOR - FORNECIMENTO E INSTALAÇÃO. AF_12/2017 | S93: M | T93: 20 | U93: 1 | V93: 20 | Y93: 0 | Z93: 0
A94: S | B94: 3 | C94: S | D94: 0 | E94: =IF($C94=1,OFFSET(E94,-1,0)+1,OFFSET(E94,-1,0)) -> 1 | F94: =IF($C94=1,0,IF($C94=2,OFFSET(F94,-1,0)+1,OFFSET(F94,-1,0))) -> 4 | G94: =IF(AND($C94<=2,$C94<>0),0,IF($C94=3,OFFSET(G94,-1,0)+1,OFFSET(G94,-1,0))) -> 1 | H94: =IF(AND($C94<=3,$C94<>0),0,IF($C94=4,OFFSET(H94,-1,0)+1,OFFSET(H94,-1,0))) -> 0 | I94: 0 | J94: 0 | K94: 0 | M94: Serviço | N94: Serviço | O94: - | P94: AGETOP | Q94: 70720 | R94: CAIXA METÁLICA PARA MEDIDOR POLIFÁSICO PADRÃO ENEL 500X380X166MM | S94: Un | T94: 1 | U94: 1 | V94: 1 | Y94: 0 | Z94: 0
A95: S | B95: 3 | C95: S | D95: 0 | E95: 1 | F95: 4 | G95: 1 | H95: 0 | I95: 0 | J95: 0 | K95: 0 | M95: Serviço | N95: Serviço | O95: - | P95: AGETOP | Q95: 70695 | R95: CAIXA METÁLICA PARA PROTEÇÃO GERAL 580X500X216MM ATÉ 175A | S95: Un | T95: 1 | U95: 1 | V95: 1 | Y95: 0 | Z95: 0
A96: S | B96: 3 | C96: S | D96: 0 | E96: 1 | F96: 4 | G96: 1 | H96: 0 | I96: 0 | J96: 0 | K96: 0 | M96: Serviço | N96: Serviço | O96: - | P96: SINAPI | Q96: 97893 | R96: CAIXA ENTERRADA ELÉTRICA RETANGULAR, EM ALVENARIA COM BLOCOS DE CONCRETO, FUNDO COM BRITA, DIMENSÕES INTERNAS: 0,8X0,8X0,6 M. AF_05/2018 | S96: UN | T96: 1 | U96: 1 | V96: 1 | Y96: 0 | Z96: 0
A97: S | B97: 3 | C97: S | D97: 0 | E97: 1 | F97: 4 | G97: 1 | H97: 0 | I97: 0 | J97: 0 | K97: 0 | M97: Serviço | N97: Serviço | O97: - | P97: AGETOP | Q97: 70771 | R97: CANTONEIRA AUXILIAR PARA BRAÇO TIPO C | S97: un | T97: 1 | U97: 1 | V97: 1 | Y97: 0 | Z97: 0
A98: S | B98: 3 | C98: S | D98: 0 | E98: 1 | F98: 4 | G98: 1 | H98: 0 | I98: 0 | J98: 0 | K98: 0 | M98: Serviço | N98: Serviço | O98: - | P98: AGETOP | Q98: 70920 | R98: CINTA DE ACO GALVANIZADO DIAM.190 MM | S98: Un | T98: 1 | U98: 1 | V98: 1 | Y98: 0 | Z98: 0
A99: S | B99: =IF(OR(C99="s",C99=0),OFFSET(B99,-1,0),C99) -> 3 | C99: =IF(OFFSET(C99,-1,0)="L",1,IF(OFFSET(C99,-1,0)=1,2,IF(OR(A99="s",A99=0),"S",IF(AND(OFFSET(C99,-1,0)=2,A99=4),3,IF(AND(OR(OFFSET(C99,-1,0)="s",OFFSET(C99,-1,0)=0),A99<>"s",A99>OFFSET(B99,-1,0)),OFFSET(B99,-1,0),A99))))) -> S | D99: =IF(OR(C99="S",C99=0),0,IF(ISERROR(K99),J99,SMALL(J99:K99,1))) -> 0 | E99: 1 | F99: 4 | G99: 1 | H99: 0 | I99: 0 | J99: 0 | K99: 0 | M99: Serviço | N99: Serviço | O99: - | P99: AGETOP | Q99: 70921 | R99: CINTA DE ACO GALVANIZADO DIAM.220 MM | S99: Un | T99: 4 | U99: 1 | V99: 4 | Y99: 0 | Z99: 0
A100: S | B100: 3 | C100: S | D100: 0 | E100: 1 | F100: 4 | G100: 1 | H100: 0 | I100: 0 | J100: 0 | K100: 0 | M100: Serviço | N100: Serviço | O100: - | P100: AGETOP | Q100: 70922 | R100: CINTA DE ACO GALVANIZADO DIAM.230MM | S100: Un | T100: 2 | U100: 1 | V100: 2 | Y100: 0 | Z100: 0
A101: S | B101: 3 | C101: S | D101: 0 | E101: 1 | F101: 4 | G101: 1 | H101: 0 | I101: 0 | J101: 0 | K101: 0 | M101: Serviço | N101: Serviço | O101: - | P101: AGETOP | Q101: 71016 | R101: CONECTOR DE COMPRESSÃO FORMATO H PARA CABO 25 A 70 MM2 | S101: un | T101: 4 | U101: 1 | V101: 4 | Y101: 0 | Z101: 0
A102: S | B102: 3 | C102: S | D102: 0 | E102: 1 | F102: 4 | G102: 1 | H102: 0 | I102: 0 | J102: 0 | K102: 0 | M102: Serviço | N102: Serviço | O102: - | P102: AGETOP | Q102: 71020 | R102: CONECTOR PARAL. ALUM.EXTRUD.CA-CU-10,0D.10-2-1 PARAF. | S102: Un | T102: 6 | U102: 1 | V102: 6 | Y102: 0 | Z102: 0
A103: S | B103: 3 | C103: S | D103: 0 | E103: 1 | F103: 4 | G103: 1 | H103: 0 | I103: 0 | J103: 0 | K103: 0 | M103: Serviço | N103: Serviço | O103: - | P103: SINAPI | Q103: 72272 | R103: CONECTOR PARAFUSO FENDIDO SPLIT-BOLT - PARA CABO DE 35MM2 - FORNECIMENTO E INSTALACAO | S103: UN | T103: 1 | U103: 1 | V103: 1 | Y103: 0 | Z103: 0
A104: S | B104: 3 | C104: S | D104: 0 | E104: 1 | F104: 4 | G104: 1 | H104: 0 | I104: 0 | J104: 0 | K104: 0 | M104: Serviço | N104: Serviço | O104: - | P104: AGETOP | Q104: 71036 | R104: CONECTOR TIPO PARAFUSO FENDIDO 50 MM2 | S104: Un | T104: 8 | U104: 1 | V104: 8 | Y104: 0 | Z104: 0
A105: S | B105: 3 | C105: S | D105: 0 | E105: 1 | F105: 4 | G105: 1 | H105: 0 | I105: 0 | J105: 0 | K105: 0 | M105: Serviço | N105: Serviço | O105: - | P105: AGETOP | Q105: 71142 | R105: CURVA DE 90 GRAUS DE PVC RIGIDO DIAM. 1" | S105: Un | T105: 1 | U105: 1 | V105: 1 | Y105: 0 | Z105: 0
A106: S | B106: 3 | C106: S | D106: 0 | E106: 1 | F106: 4 | G106: 1 | H106: 0 | I106: 0 | J106: 0 | K106: 0 | M106: Serviço | N106: Serviço | O106: - | P106: SINAPI | Q106: 93026 | R106: CURVA 90 GRAUS PARA ELETRODUTO, PVC, ROSCÁVEL, DN 110 MM (4") - FORNECIMENTO E INSTALAÇÃO. AF_12/2015 | S106: UN | T106: 1 | U106: 1 | V106: 1 | Y106: 0 | Z106: 0
A107: S | B107: 3 | C107: S | D107: 0 | E107: 1 | F107: 4 | G107: 1 | H107: 0 | I107: 0 | J107: 0 | K107: 0 | M107: Serviço | N107: Serviço | O107: - | P107: AGETOP | Q107: 71186 | R107: DISPOSITIVO DE PROTEÇÃO CONTRA SURTOS (D.P.S.) 275V DE 90KA | S107: Un | T107: 3 | U107: 1 | V107: 3 | Y107: 0 | Z107: 0
A108: S | B108: 3 | C108: S | D108: 0 | E108: 1 | F108: 4 | G108: 1 | H108: 0 | I108: 0 | J108: 0 | K108: 0 | M108: Serviço | N108: Serviço | O108: - | P108: SINAPI | Q108: 74130/6 | R108: DISJUNTOR TERMOMAGNETICO TRIPOLAR PADRAO NEMA (AMERICANO) 125 A 150A 240V, FORNECIMENTO E INSTALACAO | S108: UN | T108: 2 | U108: 1 | V108: 2 | Y108: 0 | Z108: 0
A109: S | B109: 3 | C109: S | D109: 0 | E109: 1 | F109: 4 | G109: 1 | H109: 0 | I109: 0 | J109: 0 | K109: 0 | M109: Serviço | N109: Serviço | O109: - | P109: AGETOP | Q109: 71202 | R109: ELETRODUTO DE PVC RIGIDO DIAMETRO 1" | S109: M | T109: 3 | U109: 1 | V109: 3 | Y109: 0 | Z109: 0
A110: S | B110: 3 | C110: S | D110: 0 | E110: 1 | F110: 4 | G110: 1 | H110: 0 | I110: 0 | J110: 0 | K110: 0 | M110: Serviço | N110: Serviço | O110: - | P110: SINAPI | Q110: 93012 | R110: ELETRODUTO RÍGIDO ROSCÁVEL, PVC, DN 110 MM (4") - FORNECIMENTO E INSTALAÇÃO. AF_12/2015 | S110: M | T110: 30 | U110: 1 | V110: 30 | Y110: 0 | Z110: 0
A111: S | B111: 3 | C111: S | D111: 0 | E111: 1 | F111: 4 | G111: 1 | H111: 0 | I111: 0 | J111: 0 | K111: 0 | M111: Serviço | N111: Serviço | O111: - | P111: AGETOP | Q111: 71218 | R111: ELETRODUTO EM AÇO GALVANIZADO A FOGO DIÂMETRO 4" - PESADO | S111: M | T111: 7 | U111: 1 | V111: 7 | Y111: 0 | Z111: 0
A112: S | B112: 3 | C112: S | D112: 0 | E112: 1 | F112: 4 | G112: 1 | H112: 0 | I112: 0 | J112: 0 | K112: 0 | M112: Serviço | N112: Serviço | O112: - | P112: AGETOP | Q112: 71268 | R112: ELO FUSÍVEL 6 K | S112: Un | T112: 3 | U112: 1 | V112: 3 | Y112: 0 | Z112: 0
A113: S | B113: 3 | C113: S | D113: 0 | E113: 1 | F113: 4 | G113: 1 | H113: 0 | I113: 0 | J113: 0 | K113: 0 | M113: Serviço | N113: Serviço | O113: - | P113: AGETOP | Q113: 71321 | R113: FITA DE AUTO FUSAO, ROLO E 10,00 MM | S113: Un | T113: 5 | U113: 1 | V113: 5 | Y113: 0 | Z113: 0
A114: S | B114: 3 | C114: S | D114: 0 | E114: 1 | F114: 4 | G114: 1 | H114: 0 | I114: 0 | J114: 0 | K114: 0 | M114: Serviço | N114: Serviço | O114: - | P114: AGETOP | Q114: 71365 | R114: GRAMPO DE ANCORAGEM POLIMÉRICO | S114: un | T114: 3 | U114: 1 | V114: 3 | Y114: 0 | Z114: 0
A115: S | B115: 3 | C115: S | D115: 0 | E115: 1 | F115: 4 | G115: 1 | H115: 0 | I115: 0 | J115: 0 | K115: 0 | M115: Serviço | N115: Serviço | O115: - | P115: AGETOP | Q115: 71381 | R115: HASTE REV.COBRE(COPPERWELD) 5/8" X 3,00 M C/CONECTOR | S115: Un | T115: 4 | U115: 1 | V115: 4 | Y115: 0 | Z115: 0
A116: S | B116: 3 | C116: S | D116: 0 | E116: 1 | F116: 4 | G116: 1 | H116: 0 | I116: 0 | J116: 0 | K116: 0 | M116: Serviço | N116: Serviço | O116: - | P116: AGETOP | Q116: 71463 | R116: ISOLADOR EPOXI 50X40 (BUJAO) | S116: Un | T116: 2 | U116: 1 | V116: 2 | Y116: 0 | Z116: 0
A117: S | B117: 3 | C117: S | D117: 0 | E117: 1 | F117: 4 | G117: 1 | H117: 0 | I117: 0 | J117: 0 | K117: 0 | M117: Serviço | N117: Serviço | O117: - | P117: AGETOP | Q117: 71476 | R117: ISOLADOR DE ANCORAGEM POLIMÉRICO 15KV | S117: un | T117: 1 | U117: 1 | V117: 1 | Y117: 0 | Z117: 0
A118: S | B118: 3 | C118: S | D118: 0 | E118: 1 | F118: 4 | G118: 1 | H118: 0 | I118: 0 | J118: 0 | K118: 0 | M118: Serviço | N118: Serviço | O118: - | P118: AGETOP | Q118: 71480 | R118: ISOLADOR ROLDANA PORCELANA 72 X 72 | S118: Un | T118: 3 | U118: 1 | V118: 3 | Y118: 0 | Z118: 0
A119: S | B119: 3 | C119: S | D119: 0 | E119: 1 | F119: 4 | G119: 1 | H119: 0 | I119: 0 | J119: 0 | K119: 0 | M119: Serviço | N119: Serviço | O119: - | P119: AGETOP | Q119: 71510 | R119: LACO PREFORMADO DE DISTRIBUICAO | S119: Un | T119: 1 | U119: 1 | V119: 1 | Y119: 0 | Z119: 0
A120: S | B120: 3 | C120: S | D120: 0 | E120: 1 | F120: 4 | G120: 1 | H120: 0 | I120: 0 | J120: 0 | K120: 0 | M120: Serviço | N120: Serviço | O120: - | P120: AGETOP | Q120: 71742 | R120: LUVA PVC ROSQUEAVEL DIAMETRO 1" | S120: Un | T120: 2 | U120: 1 | V120: 2 | Y120: 0 | Z120: 0
A121: S | B121: 3 | C121: S | D121: 0 | E121: 1 | F121: 4 | G121: 1 | H121: 0 | I121: 0 | J121: 0 | K121: 0 | M121: Serviço | N121: Serviço | O121: - | P121: SINAPI | Q121: 93017 | R121: LUVA PARA ELETRODUTO, PVC, ROSCÁVEL, DN 110 MM (4") - FORNECIMENTO E INSTALAÇÃO. AF_12/2015 | S121: UN | T121: 15 | U121: 1 | V121: 15 | Y121: 0 | Z121: 0 | AA121: Referência: AGETOP - 71748
A122: S | B122: 3 | C122: S | D122: 0 | E122: 1 | F122: 4 | G122: 1 | H122: 0 | I122: 0 | J122: 0 | K122: 0 | M122: Serviço | N122: Serviço | O122: - | P122: AGETOP | Q122: 71708 | R122: LUVA EM AÇO GALVANIZADO DIÂMETRO 4" | S122: Un | T122: 4 | U122: 1 | V122: 4 | Y122: 0 | Z122: 0
A123: S | B123: 3 | C123: S | D123: 0 | E123: 1 | F123: 4 | G123: 1 | H123: 0 | I123: 0 | J123: 0 | K123: 0 | M123: Serviço | N123: Serviço | O123: - | P123: AGETOP | Q123: 71750 | R123: MANILHA-SAPATILHA EM AÇO GALVANIZADO | S123: un | T123: 3 | U123: 1 | V123: 3 | Y123: 0 | Z123: 0
A124: S | B124: 3 | C124: S | D124: 0 | E124: 1 | F124: 4 | G124: 1 | H124: 0 | I124: 0 | J124: 0 | K124: 0 | M124: Serviço | N124: Serviço | O124: - | P124: AGETOP | Q124: 71761 | R124: MURETA MEDIÇÃO ALVEN. 1 1/2 V.(35CM) REBOC.C/PINTURA ACRÍL. E LAJE CONC. 20MPA MALHA 8.0MM CADA 10CM REVEST.C/ARGAMASSA 1:3 C/ IMPERMEABILIZANTE | S124: m2 | T124: 4 | U124: 1 | V124: 4 | Y124: 0 | Z124: 0
A125: S | B125: 3 | C125: S | D125: 0 | E125: 1 | F125: 4 | G125: 1 | H125: 0 | I125: 0 | J125: 0 | K125: 0 | M125: Serviço | N125: Serviço | O125: - | P125: AGETOP | Q125: 71773 | R125: NIPLE METALICO Fo.Zo. DIAMETRO 1" | S125: Un | T125: 1 | U125: 1 | V125: 1 | Y125: 0 | Z125: 0
A126: S | B126: 3 | C126: S | D126: 0 | E126: 1 | F126: 4 | G126: 1 | H126: 0 | I126: 0 | J126: 0 | K126: 0 | M126: Serviço | N126: Serviço | O126: - | P126: AGETOP | Q126: 71780 | R126: NIPLE METALICO Fo.Zo. DIAMETRO 4" | S126: Un | T126: 2 | U126: 1 | V126: 2 | Y126: 0 | Z126: 0
A127: S | B127: 3 | C127: S | D127: 0 | E127: 1 | F127: 4 | G127: 1 | H127: 0 | I127: 0 | J127: 0 | K127: 0 | M127: Serviço | N127: Serviço | O127: - | P127: AGETOP | Q127: 85047 | R127: NIPLE DUPLO FERRO GALVANIZADO 2.1/2" | S127: Un | T127: 1 | U127: 1 | V127: 1 | Y127: 0 | Z127: 0
A128: S | B128: 3 | C128: S | D128: 0 | E128: 1 | F128: 4 | G128: 1 | H128: 0 | I128: 0 | J128: 0 | K128: 0 | M128: Serviço | N128: Serviço | O128: - | P128: AGETOP | Q128: 71795 | R128: OLHAL PARA PARAFUSO | S128: un | T128: 3 | U128: 1 | V128: 3 | Y128: 0 | Z128: 0
A129: S | B129: 3 | C129: S | D129: 0 | E129: 1 | F129: 4 | G129: 1 | H129: 0 | I129: 0 | J129: 0 | K129: 0 | M129: Serviço | N129: Serviço | O129: - | P129: AGETOP | Q129: 71835 | R129: PARAFUSO CABEÇA ABAULADA (FRANCES) M16 X 45 MM | S129: Un | T129: 3 | U129: 1 | V129: 3 | Y129: 0 | Z129: 0
A130: S | B130: 3 | C130: S | D130: 0 | E130: 1 | F130: 4 | G130: 1 | H130: 0 | I130: 0 | J130: 0 | K130: 0 | M130: Serviço | N130: Serviço | O130: - | P130: AGETOP | Q130: 71841 | R130: PARAFUSO CABEÇA ABAULADA (FRANCES) M16 X 150 MM | S130: Un | T130: 3 | U130: 1 | V130: 3 | Y130: 0 | Z130: 0
A131: S | B131: 3 | C131: S | D131: 0 | E131: 1 | F131: 4 | G131: 1 | H131: 0 | I131: 0 | J131: 0 | K131: 0 | M131: Serviço | N131: Serviço | O131: - | P131: AGETOP | Q131: 71833 | R131: PARA RAIOS DISTRIBUIDOR POLIMÉRICO ÓXIDO DE ZINCO S/CENTELHADOR C/ DESLIGAMENTO AUTOMÁTICO 15KV,10KA | S131: Un | T131: 3 | U131: 1 | V131: 3 | Y131: 0 | Z131: 0
A132: S | B132: 3 | C132: S | D132: 0 | E132: 1 | F132: 4 | G132: 1 | H132: 0 | I132: 0 | J132: 0 | K132: 0 | M132: Serviço | N132: Serviço | O132: - | P132: AGETOP | Q132: 71997 | R132: POSTE - FUNDAÇÃO EM CONCRETO SIMPLES DA BASE DOS POSTES 11/600 PARA TRAFO ( DIAM. 1000MM) | S132: m | T132: 0.3 | U132: 1 | V132: 0.3 | Y132: 0 | Z132: 0
A133: S | B133: 3 | C133: S | D133: 0 | E133: 1 | F133: 4 | G133: 1 | H133: 0 | I133: 0 | J133: 0 | K133: 0 | M133: Serviço | N133: Serviço | O133: - | P133: AGETOP | Q133: 72061 | R133: POSTE DE CONCRETO SC 11/600 - SEM FUNDAÇÃO/CONCRETO | S133: Un | T133: 1 | U133: 1 | V133: 1 | Y133: 0 | Z133: 0
A134: S | B134: 3 | C134: S | D134: 0 | E134: 1 | F134: 4 | G134: 1 | H134: 0 | I134: 0 | J134: 0 | K134: 0 | M134: Serviço | N134: Serviço | O134: - | P134: AGETOP | Q134: 72080 | R134: POSTE/TRAFO - CAMINHÃO MUNCK 12 TON. (MÍNIMO 4H/DIA) | S134: H | T134: 4 | U134: 1 | V134: 4 | Y134: 0 | Z134: 0
A135: S | B135: 3 | C135: S | D135: 0 | E135: 1 | F135: 4 | G135: 1 | H135: 0 | I135: 0 | J135: 0 | K135: 0 | M135: Serviço | N135: Serviço | O135: - | P135: AGETOP | Q135: 72329 | R135: SAPATILHA DE AÇO GALVANIZADO PARA POSTE COM TRANSFORMADOR | S135: un | T135: 3 | U135: 1 | V135: 3 | Y135: 0 | Z135: 0
A136: S | B136: 3 | C136: S | D136: 0 | E136: 1 | F136: 4 | G136: 1 | H136: 0 | I136: 0 | J136: 0 | K136: 0 | M136: Serviço | N136: Serviço | O136: - | P136: SINAPI | Q136: 73624 | R136: SUPORTE PARA TRANSFORMADOR EM POSTE DE CONCRETO CIRCULAR | S136: UN | T136: 3 | U136: 1 | V136: 3 | Y136: 0 | Z136: 0
A137: S | B137: 3 | C137: S | D137: 0 | E137: 1 | F137: 4 | G137: 1 | H137: 0 | I137: 0 | J137: 0 | K137: 0 | M137: Serviço | N137: Serviço | O137: - | P137: AGETOP | Q137: 72518 | R137: TERMINAL DE PRESSAO 10 MM2 | S137: Un | T137: 3 | U137: 1 | V137: 3 | Y137: 0 | Z137: 0
A138: S | B138: 3 | C138: S | D138: 0 | E138: 1 | F138: 4 | G138: 1 | H138: 0 | I138: 0 | J138: 0 | K138: 0 | M138: Serviço | N138: Serviço | O138: - | P138: AGETOP | Q138: 72523 | R138: TERMINAL DE PRESSAO 25 MM2 | S138: Un | T138: 2 | U138: 1 | V138: 2 | Y138: 0 | Z138: 0
A139: S | B139: 3 | C139: S | D139: 0 | E139: 1 | F139: 4 | G139: 1 | H139: 0 | I139: 0 | J139: 0 | K139: 0 | M139: Serviço | N139: Serviço | O139: - | P139: AGETOP | Q139: 72532 | R139: TERMINAL DE PRESSAO 50 MM2 | S139: Un | T139: 10 | U139: 1 | V139: 10 | Y139: 0 | Z139: 0
A140: S | B140: 3 | C140: S | D140: 0 | E140: 1 | F140: 4 | G140: 1 | H140: 0 | I140: 0 | J140: 0 | K140: 0 | M140: Serviço | N140: Serviço | O140: - | P140: SINAPI | Q140: 73857/1 | R140: TRANSFORMADOR DISTRIBUICAO 75KVA TRIFASICO 60HZ CLASSE 15KV IMERSO EM ÓLEO MINERAL FORNECIMENTO E INSTALACAO | S140: UN | T140: 1 | U140: 1 | V140: 1 | Y140: 0 | Z140: 0
A141: S | B141: 3 | C141: S | D141: 0 | E141: 1 | F141: 4 | G141: 1 | H141: 0 | I141: 0 | J141: 0 | K141: 0 | M141: Serviço | N141: Serviço | O141: - | P141: SINAPI | Q141: 88543 | R141: ARMACAO SECUNDARIA OU REX COMPLETA PARA TRESLINHAS-FORNECIMENTO E INSTALACAO. | S141: UN | T141: 1 | U141: 1 | V141: 1 | Y141: 0 | Z141: 0
A142: S | B142: 3 | C142: S | D142: 0 | E142: 1 | F142: 4 | G142: 1 | H142: 0 | I142: 0 | J142: 0 | K142: 0 | M142: Serviço | N142: Serviço | O142: - | P142: COMPOSIÇÃO | Q142: COMP 046_SEE | R142: CAPUZ PARA PROTEÇÃO DOS PARA RAIOS | S142: UN | T142: 3 | U142: 1 | V142: 3 | Y142: 0 | Z142: 0
A143: S | B143: 3 | C143: S | D143: 0 | E143: 1 | F143: 4 | G143: 1 | H143: 0 | I143: 0 | J143: 0 | K143: 0 | M143: Serviço | N143: Serviço | O143: - | P143: COMPOSIÇÃO | Q143: COMP 047_SEE | R143: CAPUZ DE PROTEÇÃO PARA BUCHA DE TRANSFORMADOR | S143: UN | T143: 3 | U143: 1 | V143: 3 | Y143: 0 | Z143: 0
A144: S | B144: 3 | C144: S | D144: 0 | E144: 1 | F144: 4 | G144: 1 | H144: 0 | I144: 0 | J144: 0 | K144: 0 | M144: Serviço | N144: Serviço | O144: - | P144: COMPOSIÇÃO | Q144: COMP 048_SEE | R144: HASTE ROSQUEADA "TIRANTE" 3/8" | S144: M | T144: 0.5 | U144: 1 | V144: 0.5 | Y144: 0 | Z144: 0
A145: S | B145: 3 | C145: S | D145: 0 | E145: 1 | F145: 4 | G145: 1 | H145: 0 | I145: 0 | J145: 0 | K145: 0 | M145: Serviço | N145: Serviço | O145: - | P145: COMPOSIÇÃO | Q145: COMP 037_SEE | R145: CAIXA DE INSPEÇÃO PVC 300X250MM+TP P/CX INSP GALV FOGO 300MM | S145: UN | T145: 1 | U145: 1 | V145: 1 | Y145: 0 | Z145: 0
A146: S | B146: 3 | C146: S | D146: 0 | E146: 1 | F146: 4 | G146: 1 | H146: 0 | I146: 0 | J146: 0 | K146: 0 | M146: Serviço | N146: Serviço | O146: - | P146: AGETOP | Q146: 70255 | R146: ATERRAMENTO - SOLDA EXOTÉRMICA - CARTUCHO 90 G | S146: un | T146: 4 | U146: 1 | V146: 4 | Y146: 0 | Z146: 0
A147: S | B147: 3 | C147: S | D147: 0 | E147: 1 | F147: 4 | G147: 1 | H147: 0 | I147: 0 | J147: =IF(OR($C147="S",$C147=0),0,MATCH(0,OFFSET($D147,1,$C147,ROW($C$923)-ROW($C147)),0)) -> 0 | K147: =IF(OR($C147="S",$C147=0),0,MATCH(OFFSET($D147,0,$C147)+1,OFFSET($D147,1,$C147,ROW($C$923)-ROW($C147)),0)) -> 0 | M147: Serviço | N147: Serviço | O147: - | P147: COMPOSIÇÃO | Q147: COMP 049_SEE | R147: PORCA SEXTAVADA 3/8" | S147: UN | T147: 8 | U147: 1 | V147: 8 | Y147: 0 | Z147: 0
A148: 3 | B148: 3 | C148: 3 | D148: 52 | E148: 1 | F148: 4 | G148: 2 | H148: 0 | I148: 0 | J148: 78 | K148: 52 | M148: Nível 3 | N148: Nível 3 | O148: - | P148: SINAPI | R148: REFORMA ELÉTRICA | S148: - | U148: 1 | V148: - | Y148: 0 | Z148: 0
A149: S | B149: 3 | C149: S | D149: 0 | E149: 1 | F149: 4 | G149: 2 | H149: 0 | I149: 0 | J149: 0 | K149: 0 | M149: Serviço | N149: Serviço | O149: - | P149: SINAPI | Q149: 91926 | R149: CABO DE COBRE FLEXÍVEL ISOLADO, 2,5 MM², ANTI-CHAMA 450/750 V, PARA CIRCUITOS TERMINAIS - FORNECIMENTO E INSTALAÇÃO. AF_12/2015 | S149: M | T149: 4400 | U149: 1 | V149: 4400 | Y149: 0 | Z149: 0 | AA149: Referência: AGETOP - 70563
A150: S | B150: 3 | C150: S | D150: 0 | E150: 1 | F150: 4 | G150: 2 | H150: 0 | I150: 0 | J150: 0 | K150: 0 | M150: Serviço | N150: Serviço | O150: - | P150: SINAPI | Q150: 91928 | R150: CABO DE COBRE FLEXÍVEL ISOLADO, 4 MM², ANTI-CHAMA 450/750 V, PARA CIRCUITOS TERMINAIS - FORNECIMENTO E INSTALAÇÃO. AF_12/2015 | S150: M | T150: 1451 | U150: 1 | V150: 1451 | Y150: 0 | Z150: 0 | AA150: Referência: AGETOP - 70564
A151: S | B151: 3 | C151: S | D151: 0 | E151: 1 | F151: 4 | G151: 2 | H151: 0 | I151: 0 | J151: 0 | K151: 0 | M151: Serviço | N151: Serviço | O151: - | P151: SINAPI | Q151: 91930 | R151: CABO DE COBRE FLEXÍVEL ISOLADO, 6 MM², ANTI-CHAMA 450/750 V, PARA CIRCUITOS TERMINAIS - FORNECIMENTO E INSTALAÇÃO. AF_12/2015 | S151: M | T151: 1050 | U151: 1 | V151: 1050 | Y151: 0 | Z151: 0 | AA151: Referência: AGETOP - 70565
A152: S | B152: 3 | C152: S | D152: 0 | E152: 1 | F152: 4 | G152: 2 | H152: 0 | I152: 0 | J152: 0 | K152: 0 | M152: Serviço | N152: Serviço | O152: - | P152: SINAPI | Q152: 92982 | R152: CABO DE COBRE FLEXÍVEL ISOLADO, 16 MM², ANTI-CHAMA 0,6/1,0 KV, PARA DISTRIBUIÇÃO - FORNECIMENTO E INSTALAÇÃO. AF_12/2015 | S152: M | T152: 8 | U152: 1 | V152: 8 | Y152: 0 | Z152: 0 | AA152: Referência: AGETOP - 70510
A153: S | B153: 3 | C153: S | D153: 0 | E153: 1 | F153: 4 | G153: 2 | H153: 0 | I153: 0 | J153: 0 | K153: 0 | M153: Serviço | N153: Serviço | O153: - | P153: SINAPI | Q153: 92984 | R153: CABO DE COBRE FLEXÍVEL ISOLADO, 25 MM², ANTI-CHAMA 0,6/1,0 KV, PARA DISTRIBUIÇÃO - FORNECIMENTO E INSTALAÇÃO. AF_12/2015 | S153: M | T153: 30 | U153: 1 | V153: 30 | Y153: 0 | Z153: 0 | AA153: Referência: AGETOP - 70511
A154: S | B154: 3 | C154: S | D154: 0 | E154: 1 | F154: 4 | G154: 2 | H154: 0 | I154: =IF(AND($C154<=4,$C154<>0),0,IF(AND($C154="S",$Y154>0),OFFSET(I154,-1,0)+1,OFFSET(I154,-1,0))) -> 0 | J154: 0 | K154: 0 | M154: Serviço | N154: Serviço | O154: - | P154: AGETOP | Q154: 70561 | R154: CABO ISOLADO PP 3 X 2,5 MM2 | S154: M | T154: 100 | U154: 1 | V154: 100 | Y154: 0 | Z154: 0
A155: S | B155: 3 | C155: S | D155: 0 | E155: 1 | F155: 4 | G155: 2 | H155: 0 | I155: 0 | J155: 0 | K155: 0 | M155: Serviço | N155: Serviço | O155: - | P155: AGETOP | Q155: 70681 | R155: CAIXA METALICA OCTOGONAL FUNDO MOVEL, SIMPLES 2" | S155: Un | T155: 154 | U155: 1 | V155: 154 | Y155: 0 | Z155: 0
A156: S | B156: 3 | C156: S | D156: 0 | E156: 1 | F156: 4 | G156: 2 | H156: 0 | I156: 0 | J156: 0 | K156: 0 | M156: Serviço | N156: Serviço | O156: - | P156: SINAPI | Q156: 91941 | R156: CAIXA RETANGULAR 4" X 2" BAIXA (0,30 M DO PISO), PVC, INSTALADA EM PAREDE - FORNECIMENTO E INSTALAÇÃO. AF_12/2015 | S156: UN | T156: 112 | U156: 1 | V156: 112 | Y156: 0 | Z156: 0
A157: S | B157: 3 | C157: S | D157: 0 | E157: =IF($C157=1,OFFSET(E157,-1,0)+1,OFFSET(E157,-1,0)) -> 1 | F157: =IF($C157=1,0,IF($C157=2,OFFSET(F157,-1,0)+1,OFFSET(F157,-1,0))) -> 4 | G157: =IF(AND($C157<=2,$C157<>0),0,IF($C157=3,OFFSET(G157,-1,0)+1,OFFSET(G157,-1,0))) -> 2 | H157: =IF(AND($C157<=3,$C157<>0),0,IF($C157=4,OFFSET(H157,-1,0)+1,OFFSET(H157,-1,0))) -> 0 | I157: 0 | J157: 0 | K157: 0 | M157: Serviço | N157: Serviço | O157: - | P157: SINAPI | Q157: 91953 | R157: INTERRUPTOR SIMPLES (1 MÓDULO), 10A/250V, INCLUINDO SUPORTE E PLACA - FORNECIMENTO E INSTALAÇÃO. AF_12/2015 | S157: UN | T157: 25 | U157: 1 | V157: 25 | Y157: 0 | Z157: 0 | AA157: Referência: AGETOP - 71440
A158: S | B158: 3 | C158: S | D158: 0 | E158: 1 | F158: 4 | G158: 2 | H158: 0 | I158: 0 | J158: 0 | K158: 0 | M158: Serviço | N158: Serviço | O158: - | P158: SINAPI | Q158: 91959 | R158: INTERRUPTOR SIMPLES (2 MÓDULOS), 10A/250V, INCLUINDO SUPORTE E PLACA - FORNECIMENTO E INSTALAÇÃO. AF_12/2015 | S158: UN | T158: 3 | U158: 1 | V158: 3 | Y158: 0 | Z158: 0 | AA158: Referência: AGETOP - 71441
A159: S | B159: 3 | C159: S | D159: 0 | E159: 1 | F159: 4 | G159: 2 | H159: 0 | I159: 0 | J159: 0 | K159: 0 | M159: Serviço | N159: Serviço | O159: - | P159: SINAPI | Q159: 91967 | R159: INTERRUPTOR SIMPLES (3 MÓDULOS), 10A/250V, INCLUINDO SUPORTE E PLACA - FORNECIMENTO E INSTALAÇÃO. AF_12/2015 | S159: UN | T159: 2 | U159: 1 | V159: 2 | Y159: 0 | Z159: 0 | AA159: Referência: AGETOP - 71442
A160: S | B160: 3 | C160: S | D160: 0 | E160: 1 | F160: 4 | G160: 2 | H160: 0 | I160: 0 | J160: 0 | K160: 0 | M160: Serviço | N160: Serviço | O160: - | P160: SINAPI | Q160: 92000 | R160: TOMADA BAIXA DE EMBUTIR (1 MÓDULO), 2P+T 10 A, INCLUINDO SUPORTE E PLACA - FORNECIMENTO E INSTALAÇÃO. AF_12/2015 | S160: UN | T160: 74 | U160: 1 | V160: 74 | Y160: 0 | Z160: 0 | AA160: Referência: AGETOP - 72578
A161: S | B161: 3 | C161: S | D161: 0 | E161: 1 | F161: 4 | G161: 2 | H161: 0 | I161: 0 | J161: 0 | K161: 0 | M161: Serviço | N161: Serviço | O161: - | P161: SINAPI | Q161: 91993 | R161: TOMADA ALTA DE EMBUTIR (1 MÓDULO), 2P+T 20 A, INCLUINDO SUPORTE E PLACA - FORNECIMENTO E INSTALAÇÃO. AF_12/2015 | S161: UN | T161: 20 | U161: 1 | V161: 20 | Y161: 0 | Z161: 0 | AA161: Referência: AGETOP - 72585
A162: S | B162: 3 | C162: S | D162: 0 | E162: 1 | F162: 4 | G162: 2 | H162: 0 | I162: 0 | J162: 0 | K162: 0 | M162: Serviço | N162: Serviço | O162: - | P162: SINAPI | Q162: 92008 | R162: TOMADA BAIXA DE EMBUTIR (2 MÓDULOS), 2P+T 10 A, INCLUINDO SUPORTE E PLACA - FORNECIMENTO E INSTALAÇÃO. AF_12/2015 | S162: UN | T162: 8 | U162: 1 | V162: 8 | Y162: 0 | Z162: 0
A163: S | B163: =IF(OR(C163="s",C163=0),OFFSET(B163,-1,0),C163) -> 3 | C163: =IF(OFFSET(C163,-1,0)="L",1,IF(OFFSET(C163,-1,0)=1,2,IF(OR(A163="s",A163=0),"S",IF(AND(OFFSET(C163,-1,0)=2,A163=4),3,IF(AND(OR(OFFSET(C163,-1,0)="s",OFFSET(C163,-1,0)=0),A163<>"s",A163>OFFSET(B163,-1,0)),OFFSET(B163,-1,0),A163))))) -> S | D163: =IF(OR(C163="S",C163=0),0,IF(ISERROR(K163),J163,SMALL(J163:K163,1))) -> 0 | E163: 1 | F163: 4 | G163: 2 | H163: 0 | I163: 0 | J163: 0 | K163: 0 | M163: Serviço | N163: Serviço | O163: - | P163: SINAPI | Q163: 97891 | R163: CAIXA ENTERRADA ELÉTRICA RETANGULAR, EM ALVENARIA COM BLOCOS DE CONCRETO, FUNDO COM BRITA, DIMENSÕES INTERNAS: 0,4X0,4X0,4 M. AF_05/2018 | S163: UN | T163: 1 | U163: 1 | V163: 1 | Y163: 0 | Z163: 0
A164: S | B164: 3 | C164: S | D164: 0 | E164: 1 | F164: 4 | G164: 2 | H164: 0 | I164: 0 | J164: 0 | K164: 0 | M164: Serviço | N164: Serviço | O164: - | P164: SINAPI | Q164: 93654 | R164: DISJUNTOR MONOPOLAR TIPO DIN, CORRENTE NOMINAL DE 16A - FORNECIMENTO E INSTALAÇÃO. AF_04/2016 | S164: UN | T164: 14 | U164: 1 | V164: 14 | Y164: 0 | Z164: 0
A165: S | B165: 3 | C165: S | D165: 0 | E165: 1 | F165: 4 | G165: 2 | H165: 0 | I165: 0 | J165: 0 | K165: 0 | M165: Serviço | N165: Serviço | O165: - | P165: SINAPI | Q165: 93656 | R165: DISJUNTOR MONOPOLAR TIPO DIN, CORRENTE NOMINAL DE 25A - FORNECIMENTO E INSTALAÇÃO. AF_04/2016 | S165: UN | T165: 20 | U165: 1 | V165: 20 | Y165: 0 | Z165: 0
A166: S | B166: 3 | C166: S | D166: 0 | E166: 1 | F166: 4 | G166: 2 | H166: 0 | I166: 0 | J166: 0 | K166: 0 | M166: Serviço | N166: Serviço | O166: - | P166: SINAPI | Q166: 93653 | R166: DISJUNTOR MONOPOLAR TIPO DIN, CORRENTE NOMINAL DE 10A - FORNECIMENTO E INSTALAÇÃO. AF_04/2016 | S166: UN | T166: 4 | U166: 1 | V166: 4 | Y166: 0 | Z166: 0
A167: S | B167: 3 | C167: S | D167: 0 | E167: 1 | F167: 4 | G167: 2 | H167: 0 | I167: 0 | J167: 0 | K167: 0 | M167: Serviço | N167: Serviço | O167: - | P167: SINAPI | Q167: 93669 | R167: DISJUNTOR TRIPOLAR TIPO DIN, CORRENTE NOMINAL DE 20A - FORNECIMENTO E INSTALAÇÃO. AF_04/2016 | S167: UN | T167: 1 | U167: 1 | V167: 1 | Y167: 0 | Z167: 0
A168: S | B168: 3 | C168: S | D168: 0 | E168: 1 | F168: 4 | G168: 2 | H168: 0 | I168: 0 | J168: 0 | K168: 0 | M168: Serviço | N168: Serviço | O168: - | P168: SINAPI | Q168: 93671 | R168: DISJUNTOR TRIPOLAR TIPO DIN, CORRENTE NOMINAL DE 32A - FORNECIMENTO E INSTALAÇÃO. AF_04/2016 | S168: UN | T168: 3 | U168: 1 | V168: 3 | Y168: 0 | Z168: 0 | AA168: Referência: AGETOP - 71173
A169: S | B169: 3 | C169: S | D169: 0 | E169: 1 | F169: 4 | G169: 2 | H169: 0 | I169: 0 | J169: 0 | K169: 0 | M169: Serviço | N169: Serviço | O169: - | P169: SINAPI | Q169: 93673 | R169: DISJUNTOR TRIPOLAR TIPO DIN, CORRENTE NOMINAL DE 50A - FORNECIMENTO E INSTALAÇÃO. AF_04/2016 | S169: UN | T169: 1 | U169: 1 | V169: 1 | Y169: 0 | Z169: 0 | AA169: Referência: AGETOP - 71174
A170: S | B170: 3 | C170: S | D170: 0 | E170: 1 | F170: 4 | G170: 2 | H170: 0 | I170: 0 | J170: 0 | K170: 0 | M170: Serviço | N170: Serviço | O170: - | P170: SINAPI | Q170: 74130/5 | R170: DISJUNTOR TERMOMAGNETICO TRIPOLAR PADRAO NEMA (AMERICANO) 60 A 100A 240V, FORNECIMENTO E INSTALACAO | S170: UN | T170: 2 | U170: 1 | V170: 2 | Y170: 0 | Z170: 0
A171: S | B171: 3 | C171: S | D171: 0 | E171: 1 | F171: 4 | G171: 2 | H171: 0 | I171: 0 | J171: 0 | K171: 0 | M171: Serviço | N171: Serviço | O171: - | P171: SINAPI | Q171: 91863 | R171: ELETRODUTO RÍGIDO ROSCÁVEL, PVC, DN 25 MM (3/4"), PARA CIRCUITOS TERMINAIS, INSTALADO EM FORRO - FORNECIMENTO E INSTALAÇÃO. AF_12/2015 | S171: M | T171: 1100 | U171: 1 | V171: 1100 | Y171: 0 | Z171: 0
A172: S | B172: 3 | C172: S | D172: 0 | E172: 1 | F172: 4 | G172: 2 | H172: 0 | I172: 0 | J172: 0 | K172: 0 | M172: Serviço | N172: Serviço | O172: - | P172: SINAPI | Q172: 91872 | R172: ELETRODUTO RÍGIDO ROSCÁVEL, PVC, DN 32 MM (1"), PARA CIRCUITOS TERMINAIS, INSTALADO EM PAREDE - FORNECIMENTO E INSTALAÇÃO. AF_12/2015 | S172: M | T172: 180 | U172: 1 | V172: 180 | Y172: 0 | Z172: 0 | AA172: Referência: AGETOP - 71202
A173: S | B173: 3 | C173: S | D173: 0 | E173: 1 | F173: 4 | G173: 2 | H173: 0 | I173: 0 | J173: 0 | K173: 0 | M173: Serviço | N173: Serviço | O173: - | P173: SINAPI | Q173: 93009 | R173: ELETRODUTO RÍGIDO ROSCÁVEL, PVC, DN 60 MM (2") - FORNECIMENTO E INSTALAÇÃO. AF_12/2015 | S173: M | T173: 5 | U173: 1 | V173: 5 | Y173: 0 | Z173: 0
A174: S | B174: 3 | C174: S | D174: 0 | E174: 1 | F174: 4 | G174: 2 | H174: 0 | I174: 0 | J174: 0 | K174: 0 | M174: Serviço | N174: Serviço | O174: - | P174: SINAPI | Q174: 97585 | R174: LUMINÁRIA TIPO CALHA, DE SOBREPOR, COM 2 LÂMPADAS TUBULARES DE 18 W - FORNECIMENTO E INSTALAÇÃO. AF_11/2017 | S174: UN | T174: 150 | U174: 1 | V174: 150 | Y174: 0 | Z174: 0
A175: S | B175: 3 | C175: S | D175: 0 | E175: 1 | F175: 4 | G175: 2 | H175: 0 | I175: 0 | J175: 0 | K175: 0 | M175: Serviço | N175: Serviço | O175: - | P175: COMPOSIÇÃO | Q175: COMP 387_SEE | R175: LÂMPADA LED TUBULAR 18W | S175: UN | T175: 300 | U175: 1 | V175: 300 | Y175: 0 | Z175: 0
A176: S | B176: 3 | C176: S | D176: 0 | E176: 1 | F176: 4 | G176: 2 | H176: 0 | I176: 0 | J176: 0 | K176: 0 | M176: Serviço | N176: Serviço | O176: - | P176: SINAPI | Q176: 97610 | R176: LÂMPADA COMPACTA DE LED 10 W, BASE E27 - FORNECIMENTO E INSTALAÇÃO. AF_11/2017 | S176: UN | T176: 4 | U176: 1 | V176: 4 | Y176: 0 | Z176: 0
A177: S | B177: 3 | C177: S | D177: 0 | E177: 1 | F177: 4 | G177: 2 | H177: 0 | I177: 0 | J177: 0 | K177: 0 | M177: Serviço | N177: Serviço | O177: - | P177: AGETOP | Q177: 71688 | R177: LUMINÁRIA TIPO SPOT DE SOBREPOR PARA 01 LÂMPADA | S177: un | T177: 4 | U177: 1 | V177: 4 | Y177: 0 | Z177: 0
A178: S | B178: 3 | C178: S | D178: 0 | E178: 1 | F178: 4 | G178: 2 | H178: 0 | I178: 0 | J178: 0 | K178: 0 | M178: Serviço | N178: Serviço | O178: - | P178: COMPOSIÇÃO | Q178: COMP 375_SEE | R178: REFLETOR DE LED HOLOFORTE 50W | S178: UN | T178: 10 | U178: 1 | V178: 10 | Y178: 0 | Z178: 0
A179: S | B179: 3 | C179: S | D179: 0 | E179: 1 | F179: 4 | G179: 2 | H179: 0 | I179: 0 | J179: 0 | K179: 0 | M179: Serviço | N179: Serviço | O179: - | P179: SINAPI | Q179: 91884 | R179: LUVA PARA ELETRODUTO, PVC, ROSCÁVEL, DN 25 MM (3/4"), PARA CIRCUITOS TERMINAIS, INSTALADA EM PAREDE - FORNECIMENTO E INSTALAÇÃO. AF_12/2015 | S179: UN | T179: 550 | U179: 1 | V179: 550 | Y179: 0 | Z179: 0 | AA179: Referência: AGETOP - 71741
A180: S | B180: 3 | C180: S | D180: 0 | E180: 1 | F180: 4 | G180: 2 | H180: 0 | I180: 0 | J180: 0 | K180: 0 | M180: Serviço | N180: Serviço | O180: - | P180: SINAPI | Q180: 91876 | R180: LUVA PARA ELETRODUTO, PVC, ROSCÁVEL, DN 32 MM (1"), PARA CIRCUITOS TERMINAIS, INSTALADA EM FORRO - FORNECIMENTO E INSTALAÇÃO. AF_12/2015 | S180: UN | T180: 90 | U180: 1 | V180: 90 | Y180: 0 | Z180: 0
A181: S | B181: 3 | C181: S | D181: 0 | E181: 1 | F181: 4 | G181: 2 | H181: 0 | I181: 0 | J181: 0 | K181: 0 | M181: Serviço | N181: Serviço | O181: - | P181: SINAPI | Q181: 93014 | R181: LUVA PARA ELETRODUTO, PVC, ROSCÁVEL, DN 60 MM (2") - FORNECIMENTO E INSTALAÇÃO. AF_12/2015 | S181: UN | T181: 2.5 | U181: 1 | V181: 2.5 | Y181: 0 | Z181: 0 | AA181: Referência: AGETOP - 71745
A182: S | B182: 3 | C182: S | D182: 0 | E182: 1 | F182: 4 | G182: 2 | H182: 0 | I182: 0 | J182: 0 | K182: 0 | M182: Serviço | N182: Serviço | O182: - | P182: AGETOP | Q182: 70351 | R182: BRACADEIRA METALICA TIPO "U" DIAM. 3/4" | S182: Un | T182: 550 | U182: 1 | V182: 550 | Y182: 0 | Z182: 0
A183: S | B183: 3 | C183: S | D183: 0 | E183: 1 | F183: 4 | G183: 2 | H183: 0 | I183: 0 | J183: 0 | K183: 0 | M183: Serviço | N183: Serviço | O183: - | P183: AGETOP | Q183: 70352 | R183: BRACADEIRA METALICA TIPO "U" DIAM. 1" | S183: Un | T183: 90 | U183: 1 | V183: 90 | Y183: 0 | Z183: 0
A184: S | B184: 3 | C184: S | D184: 0 | E184: 1 | F184: 4 | G184: 2 | H184: 0 | I184: 0 | J184: 0 | K184: 0 | M184: Serviço | N184: Serviço | O184: - | P184: AGETOP | Q184: 70355 | R184: BRACADEIRA METALICA TIPO "U" DIAM. 2" | S184: Un | T184: 2.5 | U184: 1 | V184: 2.5 | Y184: 0 | Z184: 0
A185: S | B185: 3 | C185: S | D185: 0 | E185: 1 | F185: 4 | G185: 2 | H185: 0 | I185: 0 | J185: 0 | K185: 0 | M185: Serviço | N185: Serviço | O185: - | P185: AGETOP | Q185: 70421 | R185: BUCHA E ARRUELA METALICA DIAM. 3/4" | S185: PR | T185: 20 | U185: 1 | V185: 20 | Y185: 0 | Z185: 0
A186: S | B186: 3 | C186: S | D186: 0 | E186: 1 | F186: 4 | G186: 2 | H186: 0 | I186: 0 | J186: 0 | K186: 0 | M186: Serviço | N186: Serviço | O186: - | P186: AGETOP | Q186: 70422 | R186: BUCHA E ARRUELA METALICA DIAM. 1" | S186: PR | T186: 10 | U186: 1 | V186: 10 | Y186: 0 | Z186: 0
A187: S | B187: 3 | C187: S | D187: 0 | E187: 1 | F187: 4 | G187: 2 | H187: 0 | I187: 0 | J187: 0 | K187: 0 | M187: Serviço | N187: Serviço | O187: - | P187: AGETOP | Q187: 70425 | R187: BUCHA E ARRUELA METALICA DIAM. 2" | S187: PR | T187: 4 | U187: 1 | V187: 4 | Y187: 0 | Z187: 0
A188: S | B188: 3 | C188: S | D188: 0 | E188: 1 | F188: 4 | G188: 2 | H188: 0 | I188: 0 | J188: 0 | K188: 0 | M188: Serviço | N188: Serviço | O188: - | P188: SINAPI | Q188: 91890 | R188: CURVA 90 GRAUS PARA ELETRODUTO, PVC, ROSCÁVEL, DN 25 MM (3/4"), PARA CIRCUITOS TERMINAIS, INSTALADA EM FORRO - FORNECIMENTO E INSTALAÇÃO. AF_12/2015 | S188: UN | T188: 50 | U188: 1 | V188: 50 | Y188: 0 | Z188: 0
A189: S | B189: 3 | C189: S | D189: 0 | E189: 1 | F189: 4 | G189: 2 | H189: 0 | I189: 0 | J189: 0 | K189: 0 | M189: Serviço | N189: Serviço | O189: - | P189: SINAPI | Q189: 91893 | R189: CURVA 90 GRAUS PARA ELETRODUTO, PVC, ROSCÁVEL, DN 32 MM (1"), PARA CIRCUITOS TERMINAIS, INSTALADA EM FORRO - FORNECIMENTO E INSTALAÇÃO. AF_12/2015 | S189: UN | T189: 40 | U189: 1 | V189: 40 | Y189: 0 | Z189: 0
A190: S | B190: 3 | C190: S | D190: 0 | E190: 1 | F190: 4 | G190: 2 | H190: 0 | I190: 0 | J190: 0 | K190: 0 | M190: Serviço | N190: Serviço | O190: - | P190: SINAPI | Q190: 93020 | R190: CURVA 90 GRAUS PARA ELETRODUTO, PVC, ROSCÁVEL, DN 60 MM (2") - FORNECIMENTO E INSTALAÇÃO. AF_12/2015 | S190: UN | T190: 2 | U190: 1 | V190: 2 | Y190: 0 | Z190: 0
A191: S | B191: 3 | C191: S | D191: 0 | E191: 1 | F191: 4 | G191: 2 | H191: 0 | I191: 0 | J191: 0 | K191: 0 | M191: Serviço | N191: Serviço | O191: - | P191: AGETOP | Q191: 71331 | R191: FITA ISOLANTE, ROLO DE 20,00 M | S191: Un | T191: 10 | U191: 1 | V191: 10 | Y191: 0 | Z191: 0
A192: S | B192: 3 | C192: S | D192: 0 | E192: 1 | F192: 4 | G192: 2 | H192: 0 | I192: 0 | J192: 0 | K192: 0 | M192: Serviço | N192: Serviço | O192: - | P192: AGETOP | Q192: 71321 | R192: FITA DE AUTO FUSAO, ROLO E 10,00 MM | S192: Un | T192: 5 | U192: 1 | V192: 5 | Y192: 0 | Z192: 0
A193: S | B193: 3 | C193: S | D193: 0 | E193: 1 | F193: 4 | G193: 2 | H193: 0 | I193: 0 | J193: 0 | K193: 0 | M193: Serviço | N193: Serviço | O193: - | P193: AGETOP | Q193: 71321 | R193: FITA DE AUTO FUSAO, ROLO E 10,00 MM | S193: Un | T193: 8 | U193: 1 | V193: 8 | Y193: 0 | Z193: 0
A194: S | B194: 3 | C194: S | D194: 0 | E194: 1 | F194: 4 | G194: 2 | H194: 0 | I194: 0 | J194: 0 | K194: 0 | M194: Serviço | N194: Serviço | O194: - | P194: AGETOP | Q194: 71331 | R194: FITA ISOLANTE, ROLO DE 20,00 M | S194: Un | T194: 5 | U194: 1 | V194: 5 | Y194: 0 | Z194: 0
A195: S | B195: 3 | C195: S | D195: 0 | E195: 1 | F195: 4 | G195: 2 | H195: 0 | I195: 0 | J195: 0 | K195: 0 | M195: Serviço | N195: Serviço | O195: - | P195: AGETOP | Q195: 72190 | R195: QUADRO DE DISTRIBUIÇÃO DE EMBUTIR METÁLICO CB-24E - 150A | S195: Un | T195: 1 | U195: 1 | V195: 1 | Y195: 0 | Z195: 0
A196: S | B196: 3 | C196: S | D196: 0 | E196: 1 | F196: 4 | G196: 2 | H196: 0 | I196: 0 | J196: 0 | K196: 0 | M196: Serviço | N196: Serviço | O196: - | P196: SINAPI | Q196: 74131/5 | R196: QUADRO DE DISTRIBUICAO DE ENERGIA DE EMBUTIR, EM CHAPA METALICA, PARA 24 DISJUNTORES TERMOMAGNETICOS MONOPOLARES, COM BARRAMENTO TRIFASICO E NEUTRO, FORNECIMENTO E INSTALACAO | S196: UN | T196: 2 | U196: 1 | V196: 2 | Y196: 0 | Z196: 0
A197: S | B197: 3 | C197: S | D197: 0 | E197: 1 | F197: 4 | G197: 2 | H197: 0 | I197: 0 | J197: 0 | K197: 0 | M197: Serviço | N197: Serviço | O197: - | P197: AGETOP | Q197: 70924 | R197: CONDULETE DE PVC - CAIXA COM 5 ENTRADAS | S197: un | T197: 80 | U197: 1 | V197: 80 | Y197: 0 | Z197: 0
A198: S | B198: 3 | C198: S | D198: 0 | E198: 1 | F198: 4 | G198: 2 | H198: 0 | I198: 0 | J198: 0 | K198: 0 | M198: Serviço | N198: Serviço | O198: - | P198: AGETOP | Q198: 72385 | R198: TAMPA CEGA PARA CONDULETE DE PVC | S198: Un | T198: 80 | U198: 1 | V198: 80 | Y198: 0 | Z198: 0
A199: S | B199: 3 | C199: S | D199: 0 | E199: 1 | F199: 4 | G199: 2 | H199: 0 | I199: 0 | J199: 0 | K199: 0 | M199: Serviço | N199: Serviço | O199: - | P199: SINAPI | Q199: 90458 | R199: QUEBRA EM ALVENARIA PARA INSTALAÇÃO DE QUADRO DISTRIBUIÇÃO GRANDE (76X40 CM). AF_05/2015 | S199: UN | T199: 2 | U199: 1 | V199: 2 | Y199: 0 | Z199: 0
A200: 3 | B200: 3 | C200: 3 | D200: 26 | E200: 1 | F200: 4 | G200: 3 | H200: 0 | I200: 0 | J200: 26 | K200: 94 | M200: Nível 3 | N200: Nível 3 | O200: - | P200: SINAPI | R200: IMPLANTAÇÃO BLOCO PADRÃO | S200: - | U200: 1 | V200: - | Y200: 0 | Z200: 0
A201: S | B201: 3 | C201: S | D201: 0 | E201: 1 | F201: 4 | G201: 3 | H201: 0 | I201: 0 | J201: 0 | K201: 0 | M201: Serviço | N201: Serviço | O201: - | P201: SINAPI | Q201: 91929 | R201: CABO DE COBRE FLEXÍVEL ISOLADO, 4 MM², ANTI-CHAMA 0,6/1,0 KV, PARA CIRCUITOS TERMINAIS - FORNECIMENTO E INSTALAÇÃO. AF_12/2015 | S201: M | T201: 710 | U201: 1 | V201: 710 | Y201: 0 | Z201: 0 | AA201: Referência: AGETOP - 70582
A202: S | B202: 3 | C202: S | D202: 0 | E202: 1 | F202: 4 | G202: 3 | H202: 0 | I202: 0 | J202: 0 | K202: 0 | M202: Serviço | N202: Serviço | O202: - | P202: SINAPI | Q202: 92980 | R202: CABO DE COBRE FLEXÍVEL ISOLADO, 10 MM², ANTI-CHAMA 0,6/1,0 KV, PARA DISTRIBUIÇÃO - FORNECIMENTO E INSTALAÇÃO. AF_12/2015 | S202: M | T202: 710 | U202: 1 | V202: 710 | Y202: 0 | Z202: 0
A203: S | B203: 3 | C203: S | D203: 0 | E203: 1 | F203: 4 | G203: 3 | H203: 0 | I203: 0 | J203: 0 | K203: 0 | M203: Serviço | N203: Serviço | O203: - | P203: SINAPI | Q203: 92982 | R203: CABO DE COBRE FLEXÍVEL ISOLADO, 16 MM², ANTI-CHAMA 0,6/1,0 KV, PARA DISTRIBUIÇÃO - FORNECIMENTO E INSTALAÇÃO. AF_12/2015 | S203: M | T203: 710 | U203: 1 | V203: 710 | Y203: 0 | Z203: 0 | AA203: Referência: AGETOP - 70510
A204: S | B204: 3 | C204: S | D204: 0 | E204: 1 | F204: 4 | G204: 3 | H204: 0 | I204: 0 | J204: 0 | K204: 0 | M204: Serviço | N204: Serviço | O204: - | P204: SINAPI | Q204: 97891 | R204: CAIXA ENTERRADA ELÉTRICA RETANGULAR, EM ALVENARIA COM BLOCOS DE CONCRETO, FUNDO COM BRITA, DIMENSÕES INTERNAS: 0,4X0,4X0,4 M. AF_05/2018 | S204: UN | T204: 7 | U204: 1 | V204: 7 | Y204: 0 | Z204: 0
A205: S | B205: 3 | C205: S | D205: 0 | E205: 1 | F205: 4 | G205: 3 | H205: 0 | I205: 0 | J205: 0 | K205: 0 | M205: Serviço | N205: Serviço | O205: - | P205: SINAPI | Q205: 93671 | R205: DISJUNTOR TRIPOLAR TIPO DIN, CORRENTE NOMINAL DE 32A - FORNECIMENTO E INSTALAÇÃO. AF_04/2016 | S205: UN | T205: 1 | U205: 1 | V205: 1 | Y205: 0 | Z205: 0 | AA205: Referência: AGETOP - 71173
A206: S | B206: 3 | C206: S | D206: 0 | E206: 1 | F206: 4 | G206: 3 | H206: 0 | I206: 0 | J206: 0 | K206: 0 | M206: Serviço | N206: Serviço | O206: - | P206: SINAPI | Q206: 93673 | R206: DISJUNTOR TRIPOLAR TIPO DIN, CORRENTE NOMINAL DE 50A - FORNECIMENTO E INSTALAÇÃO. AF_04/2016 | S206: UN | T206: 1 | U206: 1 | V206: 1 | Y206: 0 | Z206: 0 | AA206: Referência: AGETOP - 71174
... 790 more rows

Sheet Resumo
B3: UNIDADE ESCOLAR | G3: CÓDIGO INEP
B4: =Orçamento!$O$4 -> COLÉGIO ESTADUAL MARIA EULÁLIA DE JESUS PORTILHO | G4: =Orçamento!X4 -> 52005720
B6: OBRA | G6: CIDADE
B7: =Orçamento!$O$7 -> 0 | G7: =Orçamento!$X$7 -> PIRANHAS
B9: ENDEREÇO | G9: CRE
B10: =Orçamento!$R$10 -> AV BRASIL CENTRAL 1440, CENTRO, CEP:76230-000 | G10: =Orçamento!$O$10 -> PIRANHAS
B12: REFERÊNCIA | D12: DATA | G12: ÁREA TOTAL CONSTRUÍDA (M²)
B13: =CONCATENATE("AGETOP E SINAPI - ",Orçamento!$Y$10) -> AGETOP E SINAPI - ONERADA | D13: =Orçamento!$S$7 -> 2020-03-26 | G13: =Orçamento!$S$13 -> 3189.69
A14: FILTRO
B15: RESUMO GERAL DO ORÇAMENTO
A16: ↓ | B16: ITEM | C16: DESCRIÇÃO DOS SERVIÇOS | G16: PREÇO SEM BDI | H16: PREÇO COM BDI | I16: PARTICIP. (%)
A17: =IF(G17>0,"F","") ->  | B17: 1. | C17: =Orçamento!$P976 -> REFORMA | G17: =IFERROR(Orçamento!S976,"-") -> 0 | H17: =IFERROR(Orçamento!X976,"") -> 0 | I17: =Orçamento!AA976 -> 
A18: =IF(G18>0,"F","") ->  | B18: 2. | C18: =Orçamento!$P977 -> IMPLANTAÇÃO BLOCO COZINHA 2009 | G18: =IFERROR(Orçamento!S977,"-") -> 0 | H18: =IFERROR(Orçamento!X977,"") -> 0 | I18: =Orçamento!AA977 -> 
B19: 3. | C19: =Orçamento!$P978 -> IMPLANTAÇÃO PATIO MULTIUSO 2 | G19: =IFERROR(Orçamento!S978,"-") -> 0 | H19: =IFERROR(Orçamento!X978,"") -> 0 | I19: =Orçamento!AA978 -> 
B20: 4. | C20: =Orçamento!$P979 -> IMPLANTAÇÃO 3 SALAS DE AULA - LAJE | G20: =IFERROR(Orçamento!S979,"-") -> 0 | H20: =IFERROR(Orçamento!X979,"") -> 0 | I20: =Orçamento!AA979 -> 
B21: 5. | C21: =Orçamento!$P980 -> COZINHA 2009 | G21: =IFERROR(Orçamento!S980,"-") -> 0 | H21: =IFERROR(Orçamento!X980,"") -> 0 | I21: =Orçamento!AA980 -> 
B22: 6. | C22: =Orçamento!$P981 -> PATIO MULTIUSO 2 | G22: =IFERROR(Orçamento!S981,"-") -> 0 | H22: =IFERROR(Orçamento!X981,"") -> 0 | I22: =Orçamento!AA981 -> 
B23: 7. | C23: =Orçamento!$P982 -> 3 SALAS PADRÃO SEDUC - LAJE | G23: =IFERROR(Orçamento!S982,"-") -> 0 | H23: =IFERROR(Orçamento!X982,"") -> 0 | I23: =Orçamento!AA982 -> 
B24: 8. | C24: =Orçamento!$P983 -> PASSARELA MODELO 02 - PADRÃO XXI 2015 | G24: =IFERROR(Orçamento!S983,"-") -> 0 | H24: =IFERROR(Orçamento!X983,"") -> 0 | I24: =Orçamento!AA983 -> 
B25: 9. | C25: =Orçamento!$P984 ->  | G25: =IFERROR(Orçamento!S984,"-") -> 0 | H25: =IFERROR(Orçamento!X984,"") -> 0 | I25: =Orçamento!AA984 -> 
B26: 10. | C26: =Orçamento!$P985 ->  | G26: =IFERROR(Orçamento!S985,"-") -> 0 | H26: =IFERROR(Orçamento!X985,"") -> 0 | I26: =Orçamento!AA985 -> 
B27: 11. | C27: =Orçamento!$P986 ->  | G27: =IFERROR(Orçamento!S986,"-") -> 0 | H27: =IFERROR(Orçamento!X986,"") -> 0 | I27: =Orçamento!AA986 -> 
B28: 12. | C28: =Orçamento!$P987 ->  | G28: =IFERROR(Orçamento!S987,"-") -> 0 | H28: =IFERROR(Orçamento!X987,"") -> 0 | I28: =Orçamento!AA987 -> 
B29: 13. | C29: =Orçamento!$P988 ->  | G29: =IFERROR(Orçamento!S988,"-") -> 0 | H29: =IFERROR(Orçamento!X988,"") -> 0 | I29: =Orçamento!AA988 -> 
B30: 14. | C30: =Orçamento!$P989 ->  | G30: =IFERROR(Orçamento!S989,"-") -> 0 | H30: =IFERROR(Orçamento!X989,"") -> 0 | I30: =Orçamento!AA989 -> 
B31: 15. | C31: =Orçamento!$P990 ->  | G31: =IFERROR(Orçamento!S990,"-") -> 0 | H31: =IFERROR(Orçamento!X990,"") -> 0 | I31: =Orçamento!AA990 -> 
B32: 16. | C32: =Orçamento!$P991 ->  | G32: =IFERROR(Orçamento!S991,"-") -> 0 | H32: =IFERROR(Orçamento!X991,"") -> 0 | I32: =Orçamento!AA991 -> 
B33: 17. | C33: =Orçamento!$P992 ->  | G33: =IFERROR(Orçamento!S992,"-") -> 0 | H33: =IFERROR(Orçamento!X992,"") -> 0 | I33: =Orçamento!AA992 -> 
B34: 18. | C34: =Orçamento!$P993 ->  | G34: =IFERROR(Orçamento!S993,"-") -> 0 | H34: =IFERROR(Orçamento!X993,"") -> 0 | I34: =Orçamento!AA993 -> 
B35: 19. | C35: =Orçamento!$P994 ->  | G35: =IFERROR(Orçamento!S994,"-") -> 0 | H35: =IFERROR(Orçamento!X994,"") -> 0 | I35: =Orçamento!AA994 -> 
B36: 20. | C36: =Orçamento!$P995 ->  | G36: =IFERROR(Orçamento!S995,"-") -> 0 | H36: =IFERROR(Orçamento!X995,"") -> 0 | I36: =Orçamento!AA995 -> 
A37: F | B37: TOTAL GERAL DO ORÇAMENTO (R$) | G37: =SUM(G17:G36) -> 0 | H37: 0 | I37: =SUM(I17:I36) -> 
A38: F
A39: F

Sheet Somatório
B3: UNIDADE ESCOLAR | E3: CÓDIGO INEP
B4: =Orçamento!$O$4 -> COLÉGIO ESTADUAL MARIA EULÁLIA DE JESUS PORTILHO | E4: =Orçamento!X4 -> 52005720
B6: OBRA | E6: CIDADE
B7: =Orçamento!$O$7 -> 0 | E7: =Orçamento!$X$7 -> PIRANHAS
B9: ENDEREÇO | E9: CRE
B10: =Orçamento!$R$10 -> AV BRASIL CENTRAL 1440, CENTRO, CEP:76230-000 | E10: =Orçamento!$O$10 -> PIRANHAS
B12: REFERÊNCIA | D12: DATA | E12: ÁREA TOTAL CONSTRUÍDA (M²)
B13: =CONCATENATE("AGETOP E SINAPI - ",Orçamento!$Y$10) -> AGETOP E SINAPI - ONERADA | D13: =Orçamento!$S$7 -> 2020-03-26 | E13: =Orçamento!$S$13 -> 3189.69
A14: FILTRO
B15: SOMATÓRIO DE SERVIÇOS
A16: ↓ | B16: ITEM | C16: DESCRIÇÃO DOS SERVIÇOS | D16: PREÇO SEM BDI (R$) | E16: PREÇO COM BDI (R$) | F16: PARTIC. ( % )
A17: =IF(D17>0,"F","") ->  | B17: a. | C17: =Orçamento!P942 -> SERVIÇOS PRELIMINARES | D17: =Orçamento!S942 -> 0 | E17: =Orçamento!X942 -> 0 | F17: =Orçamento!AA942 -> 0
A18: =IF(D18>0,"F","") ->  | B18: b. | C18: =Orçamento!P943 -> TRANSPORTES | D18: =Orçamento!S943 -> 0 | E18: =Orçamento!X943 -> 0 | F18: =Orçamento!AA943 -> 0
B19: c. | C19: =Orçamento!P944 -> SERVIÇO EM TERRA | D19: =Orçamento!S944 -> 0 | E19: =Orçamento!X944 -> 0 | F19: =Orçamento!AA944 -> 0
B20: d. | C20: =Orçamento!P945 -> FUNDAÇÕES E SONDAGENS | D20: =Orçamento!S945 -> 0 | E20: =Orçamento!X945 -> 0 | F20: =Orçamento!AA945 -> 0
B21: e. | C21: =Orçamento!P946 -> ESTRUTURA | D21: =Orçamento!S946 -> 0 | E21: =Orçamento!X946 -> 0 | F21: =Orçamento!AA946 -> 0
B22: f. | C22: =Orçamento!P947 -> INSTALAÇÕES ELÉTRICAS | D22: =Orçamento!S947 -> 0 | E22: =Orçamento!X947 -> 0 | F22: =Orçamento!AA947 -> 0
B23: g. | C23: =Orçamento!P948 -> INSTALAÇÕES HIDROSSANITÁRIAS | D23: =Orçamento!S948 -> 0 | E23: =Orçamento!X948 -> 0 | F23: =Orçamento!AA948 -> 0
B24: h | C24: =Orçamento!P949 -> INSTALAÇÕES ESPECIAIS | D24: =Orçamento!S949 -> 0 | E24: =Orçamento!X949 -> 0 | F24: =Orçamento!AA949 -> 0
B25: i. | C25: =Orçamento!P950 -> ALVENARIAS E DIVISÓRIAS | D25: =Orçamento!S950 -> 0 | E25: =Orçamento!X950 -> 0 | F25: =Orçamento!AA950 -> 0
B26: j. | C26: =Orçamento!P951 -> ALVENARIA AUTO-PORTANTE | D26: =Orçamento!S951 -> 0 | E26: =Orçamento!X951 -> 0 | F26: =Orçamento!AA951 -> 0
B27: k. | C27: =Orçamento!P952 -> IMPERMEABILIZAÇÃO | D27: =Orçamento!S952 -> 0 | E27: =Orçamento!X952 -> 0 | F27: =Orçamento!AA952 -> 0
B28: l. | C28: =Orçamento!P953 -> ISOLAMENTO TÉRMICO E ACÚSTICO | D28: =Orçamento!S953 -> 0 | E28: =Orçamento!X953 -> 0 | F28: =Orçamento!AA953 -> 0
B29: m. | C29: =Orçamento!P954 -> ESTRUTURA DE MADEIRA | D29: =Orçamento!S954 -> 0 | E29: =Orçamento!X954 -> 0 | F29: =Orçamento!AA954 -> 0
B30: n. | C30: =Orçamento!P955 -> ESTRUTURAS METÁLICAS | D30: =Orçamento!S955 -> 0 | E30: =Orçamento!X955 -> 0 | F30: =Orçamento!AA955 -> 0
B31: o. | C31: =Orçamento!P956 -> COBERTURAS | D31: =Orçamento!S956 -> 0 | E31: =Orçamento!X956 -> 0 | F31: =Orçamento!AA956 -> 0
B32: p. | C32: =Orçamento!P957 -> ESQUADRIAS DE MADEIRA | D32: =Orçamento!S957 -> 0 | E32: =Orçamento!X957 -> 0 | F32: =Orçamento!AA957 -> 0
B33: q. | C33: =Orçamento!P958 -> ESQUADRIAS METÁLICAS | D33: =Orçamento!S958 -> 0 | E33: =Orçamento!X958 -> 0 | F33: =Orçamento!AA958 -> 0
B34: r. | C34: =Orçamento!P959 -> VIDROS | D34: =Orçamento!S959 -> 0 | E34: =Orçamento!X959 -> 0 | F34: =Orçamento!AA959 -> 0
B35: s. | C35: =Orçamento!P960 -> REVESTIMENTO DE PAREDE | D35: =Orçamento!S960 -> 0 | E35: =Orçamento!X960 -> 0 | F35: =Orçamento!AA960 -> 0
B36: t. | C36: =Orçamento!P961 -> FORROS | D36: =Orçamento!S961 -> 0 | E36: =Orçamento!X961 -> 0 | F36: =Orçamento!AA961 -> 0
B37: u. | C37: =Orçamento!P962 -> REVESTIMENTO DE PISO | D37: =Orçamento!S962 -> 0 | E37: =Orçamento!X962 -> 0 | F37: =Orçamento!AA962 -> 0
B38: v. | C38: =Orçamento!P963 -> FERRAGENS | D38: =Orçamento!S963 -> 0 | E38: =Orçamento!X963 -> 0 | F38: =Orçamento!AA963 -> 0
B39: w. | C39: =Orçamento!P964 -> MARCENARIA | D39: =Orçamento!S964 -> 0 | E39: =Orçamento!X964 -> 0 | F39: =Orçamento!AA964 -> 0
B40: x. | C40: =Orçamento!P965 -> ADMINISTRAÇÃO | D40: =Orçamento!S965 -> 0 | E40: =Orçamento!X965 -> 0 | F40: =Orçamento!AA965 -> 0
B41: y. | C41: =Orçamento!P966 -> PINTURA | D41: =Orçamento!S966 -> 0 | E41: =Orçamento!X966 -> 0 | F41: =Orçamento!AA966 -> 0
B42: z. | C42: =Orçamento!P967 -> DIVERSOS | D42: =Orçamento!S967 -> 0 | E42: =Orçamento!X967 -> 0 | F42: =Orçamento!AA967 -> 0
A43: F | B43: TOTAL GERAL DO ORÇAMENTO | D43: =SUM(D17:D42) -> 0 | E43: =SUM(E17:E42) -> 0 | F43: =SUM(F17:F42) -> 0
B45: (*) Para itens da AGETOP, os vidros não estão inclusos nas esquadrias e já foram considerados os custos de contramarco para as esquadrias de alumínio;

Sheet Cronog_120_Dias
B3: UNIDADE ESCOLAR | I3: PRAZO
B4: =Orçamento!$O$4 -> COLÉGIO ESTADUAL MARIA EULÁLIA DE JESUS PORTILHO | I4: 120 DIAS CORRIDOS
B6: OBRA | I6: DATA
B7: =Orçamento!$O$7 -> 0 | I7: =Orçamento!$S$7 -> 2020-03-26
B9: LOCAL | I9: ÁREA TOTAL CONSTRUÍDA (M²)
A10: FILTRO | B10: =Orçamento!$X$7 -> PIRANHAS | I10: =Orçamento!$S$13 -> 3189.69
B12: CRONOGRAMA - FÍSICO FINANCEIRO
A13: ↓ | B13: CUSTO TOTAL: | C13: =D93 -> 0 | D13: VALOR | E13: Dias: | F13: 30 | J13: 60 | N13: 90 | R13: 120 | V13: TOTAL
B14: DESCRIÇÃO DOS SERVIÇOS | E14: % | F14: 1ª PARCELA | J14: 2ª PARCELA | N14: 2ª PARCELA | R14: 2ª PARCELA
A15: =IF(D15>0,"F","") ->  | B15: SERVIÇOS PRELIMINARES | D15: =Orçamento!X942 -> 0 | E15: =Orçamento!AA942 -> 0 | F15: =ROUND(F17*$D$15,2) -> 0 | J15: =ROUND(J17*$D$15,2) -> 0 | N15: =ROUND(N17*$D$15,2) -> 0 | R15: =ROUND(R17*$D$15,2) -> 0 | V15: =SUM(F15:U15) -> 0 | W15: =IF(D15=V15,"OK","ERRO") -> OK
A16: =IF(A15="F",A15,"") -> 
A17: =IF(A16="F",A16,"") ->  | F17: 0.26 | J17: =F17 -> 0.26 | N17: =J17 -> 0.26 | R17: =1-SUM(F17:Q17) -> 0.22 | V17: =IFERROR(E15/100,"") -> 0 | W17: =IF(SUM(F17:U17)=100%,"OK","ERRO") -> OK
A18: =IF(D18>0,"F","") ->  | B18: TRANSPORTES | D18: =Orçamento!X943 -> 0 | E18: =Orçamento!AA943 -> 0 | F18: =ROUND(F20*$D$18,2) -> 0 | J18: =ROUND(J20*$D$18,2) -> 0 | N18: =ROUND(N20*$D$18,2) -> 0 | R18: =ROUND(R20*$D$18,2) -> 0 | V18: =SUM(F18:U18) -> 0 | W18: =IF(D18=V18,"OK","ERRO") -> OK
A19: =IF(A18="F",A18,"") -> 
A20: =IF(A19="F",A19,"") ->  | F20: 2.69 | J20: =F20 -> 2.69 | N20: =J20 -> 2.69 | R20: =1-SUM(F20:Q20) -> -7.07 | V20: =IFERROR(E18/100,"") -> 0 | W20: =IF(SUM(F20:U20)=100%,"OK","ERRO") -> OK
A21: =IF(D21>0,"F","") ->  | B21: SERVIÇO EM TERRA | D21: =Orçamento!X944 -> 0 | E21: =Orçamento!AA944 -> 0 | F21: =ROUND(F23*$D$21,2) -> 0 | J21: =ROUND(J23*$D$21,2) -> 0 | N21: =ROUND(N23*$D$21,2) -> 0 | R21: =ROUND(R23*$D$21,2) -> 0 | V21: =SUM(F21:U21) -> 0 | W21: =IF(D21=V21,"OK","ERRO") -> OK
A22: =IF(A21="F",A21,"") -> 
A23: =IF(A22="F",A22,"") ->  | F23: 1 | J23: =1-F23 -> 0 | V23: =IFERROR(E21/100,"") -> 0 | W23: =IF(SUM(F23:U23)=100%,"OK","ERRO") -> OK
A24: =IF(D24>0,"F","") ->  | B24: FUNDAÇÕES E SONDAGENS | D24: =Orçamento!X945 -> 0 | E24: =Orçamento!AA945 -> 0 | F24: =ROUND(F26*$D$24,2) -> 0 | J24: =ROUND(J26*$D$24,2) -> 0 | N24: =ROUND(N26*$D$24,2) -> 0 | R24: =ROUND(R26*$D$24,2) -> 0 | V24: =SUM(F24:U24) -> 0 | W24: =IF(D24=V24,"OK","ERRO") -> OK
A25: =IF(A24="F",A24,"") -> 
A26: =IF(A25="F",A25,"") ->  | F26: 0.8 | J26: 0.2 | V26: =IFERROR(E24/100,"") -> 0 | W26: =IF(SUM(F26:U26)=100%,"OK","ERRO") -> OK
A27: =IF(D27>0,"F","") ->  | B27: ESTRUTURA | D27: =Orçamento!X946 -> 0 | E27: =Orçamento!AA946 -> 0 | F27: =ROUND(F29*$D$27,2) -> 0 | J27: =ROUND(J29*$D$27,2) -> 0 | N27: =ROUND(N29*$D$27,2) -> 0 | R27: =ROUND(R29*$D$27,2) -> 0 | V27: =SUM(F27:U27) -> 0 | W27: =IF(D27=V27,"OK","ERRO") -> OK
A28: =IF(A27="F",A27,"") -> 
A29: =IF(A28="F",A28,"") ->  | F29: 0.2 | J29: 0.8 | V29: =IFERROR(E27/100,"") -> 0 | W29: =IF(SUM(F29:U29)=100%,"OK","ERRO") -> OK
A30: =IF(D30>0,"F","") ->  | B30: INST.ELET/TELEFÔNICA/CABEAMENTO ESTRUTURADO | D30: =Orçamento!X947 -> 0 | E30: =Orçamento!AA947 -> 0 | F30: =ROUND(F32*$D$30,2) -> 0 | J30: =ROUND(J32*$D$30,2) -> 0 | N30: =ROUND(N32*$D$30,2) -> 0 | R30: =ROUND(R32*$D$30,2) -> 0 | V30: =SUM(F30:U30) -> 0 | W30: =IF(D30=V30,"OK","ERRO") -> OK
A31: =IF(A30="F",A30,"") -> 
A32: =IF(A31="F",A31,"") ->  | F32: 0.22 | J32: =F32+0.1 -> 0.32 | N32: =J32 -> 0.32 | R32: =1-SUM(F32:Q32) -> 0.14 | V32: =IFERROR(E30/100,"") -> 0 | W32: =IF(SUM(F32:U32)=100%,"OK","ERRO") -> OK
A33: =IF(D33>0,"F","") ->  | B33: INSTALAÇÕES HIDROSSANITÁRIAS | D33: =Orçamento!X948 -> 0 | E33: =Orçamento!AA948 -> 0 | F33: =ROUND(F35*$D$33,2) -> 0 | J33: =ROUND(J35*$D$33,2) -> 0 | N33: =ROUND(N35*$D$33,2) -> 0 | R33: =ROUND(R35*$D$33,2) -> 0 | V33: =SUM(F33:U33) -> 0 | W33: =IF(D33=V33,"OK","ERRO") -> OK
A34: =IF(A33="F",A33,"") -> 
A35: =IF(A34="F",A34,"") ->  | F35: 0.22 | J35: =F35+0.1 -> 0.32 | N35: =J35 -> 0.32 | R35: =1-SUM(F35:Q35) -> 0.14 | V35: =IFERROR(E33/100,"") -> 0 | W35: =IF(SUM(F35:U35)=100%,"OK","ERRO") -> OK
A36: =IF(D36>0,"F","") ->  | B36: INSTALAÇÕES ESPECIAIS | D36: =Orçamento!X949 -> 0 | E36: =Orçamento!AA949 -> 0 | F36: =ROUND(F38*$D$36,2) -> 0 | J36: =ROUND(J38*$D$36,2) -> 0 | N36: =ROUND(N38*$D$36,2) -> 0 | R36: =ROUND(R38*$D$36,2) -> 0 | V36: =SUM(F36:U36) -> 0 | W36: =IF(D36=V36,"OK","ERRO") -> OK
A37: =IF(A36="F",A36,"") -> 
A38: =IF(A37="F",A37,"") ->  | R38: =1-N38 -> 1 | V38: =IFERROR(E36/100,"") -> 0 | W38: =IF(SUM(F38:U38)=100%,"OK","ERRO") -> OK
A39: =IF(D39>0,"F","") ->  | B39: ALVENARIA E DIVISÓRIAS | D39: =Orçamento!X950 -> 0 | E39: =Orçamento!AA950 -> 0 | F39: =ROUND(F41*$D$39,2) -> 0 | J39: =ROUND(J41*$D$39,2) -> 0 | N39: =ROUND(N41*$D$39,2) -> 0 | R39: =ROUND(R41*$D$39,2) -> 0 | V39: =SUM(F39:U39) -> 0 | W39: =IF(D39=V39,"OK","ERRO") -> OK
A40: =IF(A39="F",A39,"") -> 
A41: =IF(A40="F",A40,"") ->  | F41: 0.21 | J41: =F41 -> 0.21 | N41: =J41+0.25 -> 0.46 | R41: =1-SUM(F41:Q41) -> 0.12 | V41: =IFERROR(E39/100,"") -> 0 | W41: =IF(SUM(F41:U41)=100%,"OK","ERRO") -> OK
A42: =IF(D42>0,"F","") ->  | B42: ALVENARIA AUTO-PORTANTE | D42: =Orçamento!X951 -> 0 | E42: =Orçamento!AA951 -> 0 | F42: =ROUND(F44*$D$42,2) -> 0 | J42: =ROUND(J44*$D$42,2) -> 0 | N42: =ROUND(N44*$D$42,2) -> 0 | R42: =ROUND(R44*$D$42,2) -> 0 | V42: =SUM(F42:U42) -> 0
A43: =IF(A42="F",A42,"") -> 
A44: =IF(A43="F",A43,"") ->  | F44: 1 | J44: =1-F44 -> 0 | N44: =1-J44 -> 1 | R44: =1-N44 -> 0 | V44: =IFERROR(E42/100,"") -> 0
A45: =IF(D45>0,"F","") ->  | B45: IMPERMEABILIZAÇÃO | D45: =Orçamento!X952 -> 0 | E45: =Orçamento!AA952 -> 0 | F45: =ROUND(F47*$D$45,2) -> 0 | J45: =ROUND(J47*$D$45,2) -> 0 | N45: =ROUND(N47*$D$45,2) -> 0 | R45: =ROUND(R47*$D$45,2) -> 0 | V45: =SUM(F45:U45) -> 0 | W45: =IF(D45=V45,"OK","ERRO") -> OK
A46: =IF(A45="F",A45,"") -> 
A47: =IF(A46="F",A46,"") ->  | F47: 0.8 | J47: 0.2 | V47: =IFERROR(E45/100,"") -> 0 | W47: =IF(SUM(F47:U47)=100%,"OK","ERRO") -> OK
A48: =IF(D48>0,"F","") ->  | B48: ISOLAMENTO TÉRMICO E ACÚSTICO | D48: =Orçamento!X953 -> 0 | E48: =Orçamento!AA953 -> 0 | F48: =ROUND(F50*$D$48,2) -> 0 | J48: =ROUND(J50*$D$48,2) -> 0 | N48: =ROUND(N50*$D$48,2) -> 0 | R48: =ROUND(R50*$D$48,2) -> 0 | V48: =SUM(F48:U48) -> 0
A49: =IF(A48="F",A48,"") -> 
A50: =IF(A49="F",A49,"") ->  | F50: 0.5 | J50: =1-F50 -> 0.5 | N50: =1-J50 -> 0.5 | R50: =1-N50 -> 0.5 | V50: =IFERROR(E48/100,"") -> 0
A51: =IF(D51>0,"F","") ->  | B51: ESTRUTURA DE MADEIRA | D51: =Orçamento!X954 -> 0 | E51: =Orçamento!AA954 -> 0 | F51: =ROUND(F53*$D$51,2) -> 0 | J51: =ROUND(J53*$D$51,2) -> 0 | N51: =ROUND(N53*$D$51,2) -> 0 | R51: =ROUND(R53*$D$51,2) -> 0 | V51: =SUM(F51:U51) -> 0
A52: =IF(A51="F",A51,"") -> 
A53: =IF(A52="F",A52,"") ->  | F53: 0.4 | J53: =1-F53 -> 0.6 | N53: =1-J53 -> 0.4 | R53: =1-N53 -> 0.6 | V53: =IFERROR(E51/100,"") -> 0
A54: =IF(D54>0,"F","") ->  | B54: ESTRUTURA METÁLICA | D54: =Orçamento!X955 -> 0 | E54: =Orçamento!AA955 -> 0 | F54: =ROUND(F56*$D$54,2) -> 0 | J54: =ROUND(J56*$D$54,2) -> 0 | N54: =ROUND(N56*$D$54,2) -> 0 | R54: =ROUND(R56*$D$54,2) -> 0 | V54: =SUM(F54:U54) -> 0 | W54: =IF(D54=V54,"OK","ERRO") -> OK
A55: =IF(A54="F",A54,"") -> 
A56: =IF(A55="F",A55,"") ->  | F56: 0.2 | J56: 0.8 | V56: =IFERROR(E54/100,"") -> 0 | W56: =IF(SUM(F56:U56)=100%,"OK","ERRO") -> OK
A57: =IF(D57>0,"F","") ->  | B57: COBERTURAS | D57: =Orçamento!X956 -> 0 | E57: =Orçamento!AA956 -> 0 | F57: =ROUND(F59*$D$57,2) -> 0 | J57: =ROUND(J59*$D$57,2) -> 0 | N57: =ROUND(N59*$D$57,2) -> 0 | R57: =ROUND(R59*$D$57,2) -> 0 | V57: =SUM(F57:U57) -> 0 | W57: =IF(D57=V57,"OK","ERRO") -> OK
A58: =IF(A57="F",A57,"") -> 
A59: =IF(A58="F",A58,"") ->  | F59: 0 | R59: 1 | V59: =IFERROR(E57/100,"") -> 0 | W59: =IF(SUM(F59:U59)=100%,"OK","ERRO") -> OK
A60: =IF(D60>0,"F","") ->  | B60: ESQUADRIAS DE MADEIRA | D60: =Orçamento!X957 -> 0 | E60: =Orçamento!AA957 -> 0 | F60: =ROUND(F62*$D$60,2) -> 0 | J60: =ROUND(J62*$D$60,2) -> 0 | N60: =ROUND(N62*$D$60,2) -> 0 | R60: =ROUND(R62*$D$60,2) -> 0 | V60: =SUM(F60:U60) -> 0
A61: =IF(A60="F",A60,"") -> 
A62: =IF(A61="F",A61,"") ->  | F62: 0.54 | J62: =1-F62 -> 0.46 | N62: =1-J62 -> 0.54 | R62: =1-N62 -> 0.46 | V62: =IFERROR(E60/100,"") -> 0
A63: =IF(D63>0,"F","") ->  | B63: ESQUADRIAS METÁLICAS | D63: =Orçamento!X958 -> 0 | E63: =Orçamento!AA958 -> 0 | F63: =ROUND(F65*$D$63,2) -> 0 | J63: =ROUND(J65*$D$63,2) -> 0 | N63: =ROUND(N65*$D$63,2) -> 0 | R63: =ROUND(R65*$D$63,2) -> 0 | V63: =SUM(F63:U63) -> 0 | W63: =IF(D63=V63,"OK","ERRO") -> OK
A64: =IF(A63="F",A63,"") -> 
A65: =IF(A64="F",A64,"") ->  | N65: 0.2 | R65: 0.8 | V65: =IFERROR(E63/100,"") -> 0 | W65: =IF(SUM(F65:U65)=100%,"OK","ERRO") -> OK
A66: =IF(D66>0,"F","") ->  | B66: VIDROS | D66: =Orçamento!X959 -> 0 | E66: =Orçamento!AA959 -> 0 | F66: =ROUND(F68*$D$66,2) -> 0 | J66: =ROUND(J68*$D$66,2) -> 0 | N66: =ROUND(N68*$D$66,2) -> 0 | R66: =ROUND(R68*$D$66,2) -> 0 | V66: =SUM(F66:U66) -> 0 | W66: =IF(D66=V66,"OK","ERRO") -> OK
A67: =IF(A66="F",A66,"") -> 
A68: =IF(A67="F",A67,"") ->  | F68: 0 | R68: =1-N68 -> 1 | V68: =IFERROR(E66/100,"") -> 0 | W68: =IF(SUM(F68:U68)=100%,"OK","ERRO") -> OK
A69: =IF(D69>0,"F","") ->  | B69: REVESTIMENTO DE PAREDE | D69: =Orçamento!X960 -> 0 | E69: =Orçamento!AA960 -> 0 | F69: =ROUND(F71*$D$69,2) -> 0 | J69: =ROUND(J71*$D$69,2) -> 0 | N69: =D69-F69-J69-R69 -> 0 | R69: =ROUND(R71*$D$69,2) -> 0 | V69: =SUM(F69:U69) -> 0 | W69: =IF(D69=V69,"OK","ERRO") -> OK
A70: =IF(A69="F",A69,"") -> 
A71: =IF(A70="F",A70,"") ->  | F71: 0.19 | J71: 0.21 | N71: 0.5 | R71: 0.1 | V71: =IFERROR(E69/100,"") -> 0 | W71: =IF(SUM(F71:U71)=100%,"OK","ERRO") -> OK
A72: =IF(D72>0,"F","") ->  | B72: FORROS | D72: =Orçamento!X961 -> 0 | E72: =Orçamento!AA961 -> 0 | F72: =ROUND(F74*$D$72,2) -> 0 | J72: =ROUND(J74*$D$72,2) -> 0 | N72: =ROUND(N74*$D$72,2) -> 0 | R72: =ROUND(R74*$D$72,2) -> 0 | V72: =SUM(F72:U72) -> 0 | W72: =IF(D72=V72,"OK","ERRO") -> OK
A73: =IF(A72="F",A72,"") -> 
A74: =IF(A73="F",A73,"") ->  | R74: =1-N74 -> 1 | V74: =IFERROR(E72/100,"") -> 0 | W74: =IF(SUM(F74:U74)=100%,"OK","ERRO") -> OK
A75: =IF(D75>0,"F","") ->  | B75: REVESTIMENTO DE PISO | D75: =Orçamento!X962 -> 0 | E75: =Orçamento!AA962 -> 0 | F75: =ROUND(F77*$D$75,2) -> 0 | J75: =ROUND(J77*$D$75,2) -> 0 | N75: =ROUND(N77*$D$75,2) -> 0 | R75: =ROUND(R77*$D$75,2) -> 0 | V75: =SUM(F75:U75) -> 0 | W75: =IF(D75=V75,"OK","ERRO") -> OK
A76: =IF(A75="F",A75,"") -> 
A77: =IF(A76="F",A76,"") ->  | F77: 0.11 | J77: =F77+0.2 -> 0.31 | N77: =J77+0.1 -> 0.41 | R77: =1-SUM(F77:Q77) -> 0.17 | V77: =IFERROR(E75/100,"") -> 0 | W77: =IF(SUM(F77:U77)=100%,"OK","ERRO") -> OK
A78: =IF(D78>0,"F","") ->  | B78: FERRAGENS | D78: =Orçamento!X963 -> 0 | E78: =Orçamento!AA963 -> 0 | F78: =ROUND(F80*$D$78,2) -> 0 | J78: =ROUND(J80*$D$78,2) -> 0 | N78: =ROUND(N80*$D$78,2) -> 0 | R78: =ROUND(R80*$D$78,2) -> 0 | V78: =SUM(F78:U78) -> 0 | W78: =IF(D78=V78,"OK","ERRO") -> OK
A79: =IF(A78="F",A78,"") -> 
A80: =IF(A79="F",A79,"") ->  | F80: 0 | R80: =1-N80 -> 1 | V80: =IFERROR(E78/100,"") -> 0 | W80: =IF(SUM(F80:U80)=100%,"OK","ERRO") -> OK
A81: =IF(D81>0,"F","") ->  | B81: MARCENARIA | D81: =Orçamento!X964 -> 0 | E81: =Orçamento!AA964 -> 0 | F81: =ROUND(F83*$D$81,2) -> 0 | J81: =ROUND(J83*$D$81,2) -> 0 | N81: =ROUND(N83*$D$81,2) -> 0 | R81: =ROUND(R83*$D$81,2) -> 0 | V81: =SUM(F81:U81) -> 0 | W81: =IF(D81=V81,"OK","ERRO") -> OK
A82: =IF(A81="F",A81,"") -> 
A83: =IF(A82="F",A82,"") ->  | N83: 0.4 | R83: 0.6 | V83: =IFERROR(E81/100,"") -> 0 | W83: =IF(SUM(F83:U83)=100%,"OK","ERRO") -> OK
A84: =IF(D84>0,"F","") ->  | B84: ADMINISTRAÇÃO - MENSALISTAS | D84: =Orçamento!X965 -> 0 | E84: =Orçamento!AA965 -> 0 | F84: =ROUND(F86*$D$84,2) -> 0 | J84: =ROUND(J86*$D$84,2) -> 0 | N84: =ROUND(N86*$D$84,2) -> 0 | R84: =ROUND(R86*$D$84,2) -> 0 | V84: =SUM(F84:U84) -> 0 | W84: =IF(D84=V84,"OK","ERRO") -> OK
A85: =IF(A84="F",A84,"") -> 
A86: =IF(A85="F",A85,"") ->  | F86: 0.25 | J86: 0.25 | N86: 0.25 | R86: 0.25 | V86: =IFERROR(E84/100,"") -> 0 | W86: =IF(SUM(F86:U86)=100%,"OK","ERRO") -> OK
A87: =IF(D87>0,"F","") ->  | B87: PINTURA | D87: =Orçamento!X966 -> 0 | E87: =Orçamento!AA966 -> 0 | F87: =ROUND(F89*$D$87,2) -> 0 | J87: =ROUND(J89*$D$87,2) -> 0 | N87: =ROUND(N89*$D$87,2) -> 0 | R87: =ROUND(R89*$D$87,2) -> 0 | V87: =SUM(F87:U87) -> 0 | W87: =IF(D87=V87,"OK","ERRO") -> OK
A88: =IF(A87="F",A87,"") -> 
A89: =IF(A88="F",A88,"") ->  | F89: 0 | N89: 0.6 | R89: 0.4 | V89: =IFERROR(E87/100,"") -> 0 | W89: =IF(SUM(F89:U89)=100%,"OK","ERRO") -> OK
A90: =IF(D90>0,"F","") ->  | B90: DIVERSOS | D90: =Orçamento!X967 -> 0 | E90: =Orçamento!AA967 -> 0 | F90: =D90-J90-N90-R90 -> 0 | J90: =ROUND(J92*$D$90,2) -> 0 | N90: =ROUND(N92*$D$90,2) -> 0 | R90: =ROUND(R92*$D$90,2) -> 0 | V90: =SUM(F90:U90) -> 0 | W90: =IF(D90=V90,"OK","ERRO") -> OK
A91: =IF(A90="F",A90,"") -> 
A92: =IF(A91="F",A91,"") ->  | F92: 0.27 | J92: 0.23 | N92: 0.27 | R92: 0.23 | V92: =IFERROR(E90/100,"") -> 0 | W92: =IF(SUM(F92:U92)=100%,"OK","ERRO") -> OK
A93: F | B93: CUSTO DO ORÇAMENTO | D93: =SUM(D15:D92) -> 0 | E93: =SUM(E15:E92) -> 0 | F93: =F15+F18+F21+F24+F27+F30+F33+F36+F39+F42+F45+F48+F51+F54+F57+F60+F63+F66+F69+F72+F75+F78+F81+F84+F87+F90 -> 0 | J93: =J15+J18+J21+J24+J27+J30+J33+J36+J39+J42+J45+J48+J51+J54+J57+J60+J63+J66+J69+J72+J75+J78+J81+J84+J87+J90 -> 0 | N93: =N15+N18+N21+N24+N27+N30+N33+N36+N39+N42+N45+N48+N51+N54+N57+N60+N63+N66+N69+N72+N75+N78+N81+N84+N87+N90 -> 0 | R93: =R15+R18+R21+R24+R27+R30+R33+R36+R39+R42+R45+R48+R51+R54+R57+R60+R63+R66+R69+R72+R75+R78+R81+R84+R87+R90 -> 0 | V93: =V15+V18+V21+V24+V27+V30+V33+V36+V39+V42+V45+V48+V51+V54+V57+V60+V63+V66+V69+V72+V75+V78+V81+V84+V87+V90 -> 0
A94: F | B94: PERCENTUAIS: | F94: =IFERROR(F93/D93,"") ->  | J94: =IFERROR(J93/D93,"") ->  | N94: =IFERROR(N93/D93,"") ->  | R94: =IFERROR(R93/D93,"") ->  | V94: =SUM(F94:U94) -> 0
A95: F | B95: TOTAIS ACUMULADOS: | F95: =F93 -> 0 | J95: =F95+J93 -> 0 | N95: =J95+N93 -> 0 | R95: =N95+R93 -> 0
A96: F | B96: PERCENTUAIS ACUMULADOS: | F96: =F94 ->  | J96: =IFERROR(F96+J94,"") ->  | N96: =IFERROR(J96+N94,"") ->  | R96: =IFERROR(N96+R94,"") -> 
A97: F
A98: F | B98: OBSERVAÇÕES:
A99: F | B99: Os pagamentos somente poderão ser efetuados mediante medição e atesto pelos técnicos da Secretaria da Educação.

Sheet Composição BDI
A3: UNIDADE ESCOLAR
A4: =Orçamento!$O$4 -> COLÉGIO ESTADUAL MARIA EULÁLIA DE JESUS PORTILHO
A6: OBRA
A7: =Orçamento!$O$7 -> 0
A9: ENDEREÇO
A10: =Orçamento!$R$10 -> AV BRASIL CENTRAL 1440, CENTRO, CEP:76230-000
A12: CIDADE
A13: =Orçamento!$X$7 -> PIRANHAS
A15: CRE
A16: =Orçamento!$O$10 -> PIRANHAS
A18: DETALHAMENTO DA COMPOSIÇÃO DE BDI
A19: COMPOSIÇÃO BDI PARA OBRAS CIVIS | F19: BDI CONSTRUÇÃO E REFORMA
A20: DESCRIÇÃO | B20: COEF. | C20: TAXA % (a.m) | D20: % no preço de venda | F20: Situação | G20: 1º Quartil | H20: Médio | I20: 3º Quartil
A21: 1) COFINS | B21: 1 | C21: 0.03 | D21: =C21 -> 0.03 | F21: =IF(OR(C21<G21,C21>I21),"FORA DO INTERVALO","OK") -> OK | G21: 0.03 | H21: 0.03 | I21: 0.03
A22: 2) PIS | B22: 1 | C22: 0.0065 | D22: =C22 -> 0.0065 | F22: =IF(OR(C22<G22,C22>I22),"FORA DO INTERVALO","OK") -> OK | G22: 0.0065 | H22: 0.0065 | I22: 0.0065
A23: 3) ISSQN | B23: 1 | C23: 0.025 | D23: =C23*B23 -> 0.025 | F23: OK | G23: 0.02 | H23: 0.035 | I23: 0.05
A24: 4) CPRB | B24: 1 | C24: 0 | D24: =C24 -> 0 | F24: FORA DO INTERVALO | G24: 0.045 | H24: 0.045 | I24: 0.045
A25: 5) Administração Central | B25: 1 | C25: 0.04 | D25: 0.04 | F25: OK | G25: 0.03 | H25: 0.04 | I25: 0.055
A26: 6) Despesas Financeiras | B26: 1 | C26: 0.0056 | D26: 0.0056 | F26: FORA DO INTERVALO | G26: 0.0059 | H26: 0.0123 | I26: 0.0139
A27: 7) Seguros + Garantias | B27: 1 | C27: 0.0012 | D27: 0.0012 | F27: FORA DO INTERVALO | G27: 0.008 | H27: 0.008 | I27: 0.01
A28: 8) Risco | B28: 1 | C28: 0.0097 | D28: 0.0097 | F28: OK | G28: 0.0097 | H28: 0.0127 | I28: 0.0127
A29: 9) Lucro | B29: 1 | C29: 0.0687 | D29: 0.0687 | F29: OK | G29: 0.0616 | H29: 0.074 | I29: 0.0896
A30: BDI - FINAL | D30: =(((1+D25+D27+D28)*(1+D26)*(1+D29))/(1-(D21+D22+D23+D24))-1) -> 0.2033949624 | F30: FORA DO INTERVALO | G30: 0.2034 | H30: 0.2212 | I30: 0.25
A32: Notas:
A33: (1) e (2) Alíquota definida por lei.
A34: (3) Alíquota e base de cálculo definidas pela legislação municipal.
A35: (4) Alíquota definida pelas leis 12.546/11, 12844/13 e 13.161/15 (CPRB – contribuição previdenciária sobre a receita bruta).
A36: (5) Valores definidos a partir dos limites no Acórdão nº 2.622/2013 - TCU – Plenário. Valores entre o 1º e 3º quartis.
A37: (6) Valor calculado pela expressão matemática do acórdão 2.369/2011 – TCU – Plenário e disponibilizado pela AGETOP em dezembro de 2018. (Foi utilizado para o cálculo a média da Taxa SELIC no período de 11/2017 a 10/2018)
A39: (7) Valores definidos pela AGETOP a partir dos limites no Acórdão nº 2.622/2013 - TCU – Plenário. Valores médios. Observação da AGETOP: (Seguros contra erros de execução, incêndio e explosão, danos da natureza (vendaval, destelhamento, alagamento, inundação, desmoronamento, geadas etc.), emprego de material defeituoso ou inadequado, roubo e/ou furto qualificado, quebra de equipamentos, desmoronamento de estrutura, nas modalidades de Obras Civis em Construção (OCC); Instalação e Montagem (IM); e Obras Civis em Construção e Instalação e Montagem (OCC/IM). Bem como coberturas adicionais para ampliação dessas coberturas básicas, como: cobertura de responsabilidade civil geral, cobertura de responsabilidade civil cruzada, cobertura de despesas extraordinárias, cobertura de tumultos, cobertura de desentulho do local, cobertura de riscos do fabricante, dentre outras, incluindo o seguro de vida em grupo regido pela convenção coletiva dos trabalhadores na indústria da construção civil). A partir de 24/02/2015 por intermédio da Portaria 449/2015 a Presidência da AGETOP, na pessoa do Senhor Jayme Eduardo Rincon, determinou a exclusão dos valores referentes aos Seguros de Risco de Engenharia e Responsabilidade Civil do Profissional na composição do cálculo do B.D.I..
A40: (8) Valores definidos a partir dos limites no Acórdão nº 2.622/2013 - TCU – Plenário. Valores entre 1º e 3° quartis.
A41: (9) Valores definidos a partir dos limites definidos no Acórdão nº 2.622/2013 - TCU – Plenário. Valores adotados e praticados no mercado ( “ ex ante ” ) ou aqueles entre os 1º e 3º quartis.
A43: (*) A fórmula para estipulação da taxa de BDI estimado adotado é a mesma que foi aplicada para a obtenção das tabelas contidas no Acórdão n. 2.622/2013 – TCUPlenário
A45: Obs.: Para obras com valores superiores a R$ 20.000.000,00 sugere-se recalcular o BDI, dimensionando as taxas de administração central e lucro para patamares inferiores ao estipulado acima.

Sheet Relatório CENTRAL
B3: UNIDADE ESCOLAR | D3: CIDADE
B4: =Orçamento!$O$4 -> COLÉGIO ESTADUAL MARIA EULÁLIA DE JESUS PORTILHO | D4: =Orçamento!$X$7 -> PIRANHAS
B6: OBRA | D6: CRE
B7: =Orçamento!$O$7 -> 0 | D7: =Orçamento!$O$10 -> PIRANHAS
B9: ENDEREÇO | D9: DATA
A10: FILTRO | B10: =Orçamento!$R$10 -> AV BRASIL CENTRAL 1440, CENTRO, CEP:76230-000 | D10: =Orçamento!$S$7 -> 2020-03-26
B12: RELATÓRIO CENTRAL
A13: ↓ | B13: CÓDIGO | C13: ETAPA | D13: PREÇO (R$) C/ BDI | E13: PARTIC ( % )
A14: =IF(D14>0,"F","") ->  | B14: =Orçamento!O942 -> a. | C14: =Orçamento!P942 -> SERVIÇOS PRELIMINARES | D14: =Orçamento!X942 -> 0 | E14: =Orçamento!AA942 -> 0
A15: =IF(D15>0,"F","") ->  | B15: =Orçamento!O943 -> b. | C15: =Orçamento!P943 -> TRANSPORTES | D15: =Orçamento!X943 -> 0 | E15: =Orçamento!AA943 -> 0
B16: =Orçamento!O944 -> c. | C16: =Orçamento!P944 -> SERVIÇO EM TERRA | D16: =Orçamento!X944 -> 0 | E16: =Orçamento!AA944 -> 0
B17: =Orçamento!O945 -> d. | C17: =Orçamento!P945 -> FUNDAÇÕES E SONDAGENS | D17: =Orçamento!X945 -> 0 | E17: =Orçamento!AA945 -> 0
B18: =Orçamento!O946 -> e. | C18: =Orçamento!P946 -> ESTRUTURA | D18: =Orçamento!X946 -> 0 | E18: =Orçamento!AA946 -> 0
B19: =Orçamento!O947 -> f. | C19: =Orçamento!P947 -> INSTALAÇÕES ELÉTRICAS | D19: =Orçamento!X947 -> 0 | E19: =Orçamento!AA947 -> 0
B20: =Orçamento!O948 -> g. | C20: =Orçamento!P948 -> INSTALAÇÕES HIDROSSANITÁRIAS | D20: =Orçamento!X948 -> 0 | E20: =Orçamento!AA948 -> 0
B21: =Orçamento!O949 -> h | C21: =Orçamento!P949 -> INSTALAÇÕES ESPECIAIS | D21: =Orçamento!X949 -> 0 | E21: =Orçamento!AA949 -> 0
B22: =Orçamento!O950 -> i. | C22: =Orçamento!P950 -> ALVENARIAS E DIVISÓRIAS | D22: =Orçamento!X950 -> 0 | E22: =Orçamento!AA950 -> 0
B23: =Orçamento!O951 -> j. | C23: =Orçamento!P951 -> ALVENARIA AUTO-PORTANTE | D23: =Orçamento!X951 -> 0 | E23: =Orçamento!AA951 -> 0
B24: =Orçamento!O952 -> k. | C24: =Orçamento!P952 -> IMPERMEABILIZAÇÃO | D24: =Orçamento!X952 -> 0 | E24: =Orçamento!AA952 -> 0
B25: =Orçamento!O953 -> l. | C25: =Orçamento!P953 -> ISOLAMENTO TÉRMICO E ACÚSTICO | D25: =Orçamento!X953 -> 0 | E25: =Orçamento!AA953 -> 0
B26: =Orçamento!O954 -> m. | C26: =Orçamento!P954 -> ESTRUTURA DE MADEIRA | D26: =Orçamento!X954 -> 0 | E26: =Orçamento!AA954 -> 0
B27: =Orçamento!O955 -> n. | C27: =Orçamento!P955 -> ESTRUTURAS METÁLICAS | D27: =Orçamento!X955 -> 0 | E27: =Orçamento!AA955 -> 0
B28: =Orçamento!O956 -> o. | C28: =Orçamento!P956 -> COBERTURAS | D28: =Orçamento!X956 -> 0 | E28: =Orçamento!AA956 -> 0
B29: =Orçamento!O957 -> p. | C29: =Orçamento!P957 -> ESQUADRIAS DE MADEIRA | D29: =Orçamento!X957 -> 0 | E29: =Orçamento!AA957 -> 0
B30: =Orçamento!O958 -> q. | C30: =Orçamento!P958 -> ESQUADRIAS METÁLICAS | D30: =Orçamento!X958 -> 0 | E30: =Orçamento!AA958 -> 0
B31: =Orçamento!O959 -> r. | C31: =Orçamento!P959 -> VIDROS | D31: =Orçamento!X959 -> 0 | E31: =Orçamento!AA959 -> 0
B32: =Orçamento!O960 -> s. | C32: =Orçamento!P960 -> REVESTIMENTO DE PAREDE | D32: =Orçamento!X960 -> 0 | E32: =Orçamento!AA960 -> 0
B33: =Orçamento!O961 -> t. | C33: =Orçamento!P961 -> FORROS | D33: =Orçamento!X961 -> 0 | E33: =Orçamento!AA961 -> 0
B34: =Orçamento!O962 -> u. | C34: =Orçamento!P962 -> REVESTIMENTO DE PISO | D34: =Orçamento!X962 -> 0 | E34: =Orçamento!AA962 -> 0
B35: =Orçamento!O963 -> v. | C35: =Orçamento!P963 -> FERRAGENS | D35: =Orçamento!X963 -> 0 | E35: =Orçamento!AA963 -> 0
B36: =Orçamento!O964 -> w. | C36: =Orçamento!P964 -> MARCENARIA | D36: =Orçamento!X964 -> 0 | E36: =Orçamento!AA964 -> 0
B37: =Orçamento!O965 -> x. | C37: =Orçamento!P965 -> ADMINISTRAÇÃO | D37: =Orçamento!X965 -> 0 | E37: =Orçamento!AA965 -> 0
B38: =Orçamento!O966 -> y. | C38: =Orçamento!P966 -> PINTURA | D38: =Orçamento!X966 -> 0 | E38: =Orçamento!AA966 -> 0
B39: =Orçamento!O967 -> z. | C39: =Orçamento!P967 -> DIVERSOS | D39: =Orçamento!X967 -> 0 | E39: =Orçamento!AA967 -> 0
A40: F | B40: TOTAL GERAL DO ORÇAMENTO (R$) C/BDI | D40: =SUM(D14:D39) -> 0 | E40: =SUM(E14:E39) -> 0

Sheet Parc Maior Relev
B3: UNIDADE ESCOLAR | E3: CÓDIGO INEP
B4: =Orçamento!$O$4 -> COLÉGIO ESTADUAL MARIA EULÁLIA DE JESUS PORTILHO | E4: =Orçamento!$X$4 -> 52005720
B6: OBRA | E6: CIDADE
B7: =Orçamento!$O$7 -> 0 | E7: =Orçamento!$X$7 -> PIRANHAS
B9: CRE | E9: ÁREA TOTAL CONSTRUÍDA (M²)
B10: =Orçamento!$O$10 -> PIRANHAS | E10: =Orçamento!$S$13 -> 3189.69
A11: FILTRO
B12: PARCELA DE MAIOR RELEVÂNCIA
B13: CÓDIGO | C13: SERVIÇO | D13: DESCRIÇÃO | E13: UNID | F13: QUANT | G13: PARC. MAIOR RELEV (50%)
A14: =IF(F14>0,"F","") -> F | B14: =Somatório!B37 -> u. | C14: =IFERROR(VLOOKUP(B14,Orçamento!$O$942:$P$967,2,FALSE),"(inserir código ao lado)") -> REVESTIMENTO DE PISO | D14: PISO GRANITINA | E14: M² | F14: =63.31+144.74+89.67+154+20.16 -> 471.88 | G14: =F14*0.5 -> 235.94
A15: =IF(F15>0,"F","") -> F | B15: =Somatório!B31 -> o. | C15: =IFERROR(VLOOKUP(B15,Orçamento!$O$942:$P$967,2,FALSE),"(inserir código ao lado)") -> COBERTURAS | D15: COBERTURA CERÂMICA | E15: M² | F15: =543.73+182.07+124.64+205.67 -> 1056.11 | G15: 528.055
A16: F
A17: F | B17: (*) Para os fins do inciso I dp § 1º do Art. 30 da Lei Federal 8.666/93, são consideradas parcelas de maior relevância técnica as execuções apresentadas
A18: F

Sheet Composições
A4: UNIDADE ESCOLAR | H4: CÓDIGO INEP
A5: =Orçamento!$O$4 -> COLÉGIO ESTADUAL MARIA EULÁLIA DE JESUS PORTILHO | H5: =Orçamento!$X$4 -> 52005720
A7: OBRA | H7: CIDADE
A8: =Orçamento!$O$7 -> 0 | H8: =Orçamento!$X$7 -> PIRANHAS
A10: CRE | D10: ENDEREÇO | H10: REFERÊNCIA AGETOP
A11: =Orçamento!$O$10 -> PIRANHAS | D11: =Orçamento!$R$10 -> AV BRASIL CENTRAL 1440, CENTRO, CEP:76230-000 | H11: =Orçamento!$X$10 -> DEZ/18 | I11: =Orçamento!$Y$10 -> ONERADA
A13: DATA | D13: ÁREA TOTAL CONSTRUÍDA (M²) | H13: REFERÊNCIA SINAPI
A14: =Orçamento!$S$7 -> 2020-03-26 | D14: =Orçamento!$S$13 -> 3189.69 | H14: =Orçamento!$X$13 -> AGO/19 | I14: =Orçamento!$Y$13 -> ONERADA
A16: COMPOSIÇÕES DE CUSTOS UNITÁRIOS - SEE-GO
A17: 46 | B17: FONTE | C17: CÓDIGO | D17: DESCRIÇÃO | E17: UNIDADE | F17: COEFIC. | G17: CUSTO UNITÁRIO | I17: CUSTO TOTAL (A) + (B) + (C) + (D) + (E)
G18: DESONERADO | H18: NÃO DESONER. | I18: DESONERADO | J18: NÃO DESONER.
B19: COMPOSIÇÃO | C19: COMP 046_SEE | D19: CAPUZ PARA PROTEÇÃO DOS PARA RAIOS | E19: UN | I19: 16.53 | J19: 16.65
B20: AGETOP_I | C20: 8 | D20: AJUDANTE | E20: h | F20: 0.0333 | G20: 8.2 | H20: 9.51 | I20: 0.27 | J20: 0.32
B21: AGETOP_I | C21: 12 | D21: ELETRICISTA | E21: h | F21: 0.0333 | G21: 13.4 | H21: 15.53 | I21: 0.45 | J21: 0.52
G22: 0 | H22: 0 | I22: 0 | J22: 0
B23: MÃO DE OBRA (B) - TOTAL | I23: 0.72 | J23: 0.84
B24: COTAÇÃO | C24: COT 010_SEE | D24: CAPUZ PARA PROTEÇÃO DOS PARA RAIOS | E24: UN | F24: 1 | G24: 15.81 | H24: 15.81 | I24: 15.81 | J24: 15.81
G25: 0 | H25: 0 | I25: 0 | J25: 0
G26: 0 | H26: 0 | I26: 0 | J26: 0
B27: MATERIAL (C) - TOTAL | I27: 15.81 | J27: 15.81
A29: 47 | B29: FONTE | C29: CÓDIGO | D29: DESCRIÇÃO | E29: UNIDADE | F29: COEFIC. | G29: CUSTO UNITÁRIO | I29: CUSTO TOTAL (A) + (B) + (C) + (D) + (E)
G30: DESONERADO | H30: NÃO DESONER. | I30: DESONERADO | J30: NÃO DESONER.
B31: COMPOSIÇÃO | C31: COMP 047_SEE | D31: CAPUZ DE PROTEÇÃO PARA BUCHA DE TRANSFORMADOR | E31: UN | I31: 16.53 | J31: 16.65
B32: AGETOP_I | C32: 8 | D32: AJUDANTE | E32: h | F32: 0.0333 | G32: 8.2 | H32: 9.51 | I32: 0.27 | J32: 0.32
B33: AGETOP_I | C33: 12 | D33: ELETRICISTA | E33: h | F33: 0.0333 | G33: 13.4 | H33: 15.53 | I33: 0.45 | J33: 0.52
G34: 0 | H34: 0 | I34: 0 | J34: 0
B35: MÃO DE OBRA (B) - TOTAL | I35: 0.72 | J35: 0.84
B36: COTAÇÃO | C36: COT 011_SEE | D36: CAPUZ DE PROTEÇÃO PARA BUCHA DE TRANSFORMADOR | E36: UN | F36: 1 | G36: 15.81 | H36: 15.81 | I36: 15.81 | J36: 15.81
G37: 0 | H37: 0 | I37: 0 | J37: 0
G38: 0 | H38: 0 | I38: 0 | J38: 0
B39: MATERIAL (C) - TOTAL | I39: 15.81 | J39: 15.81
A41: 48 | B41: FONTE | C41: CÓDIGO | D41: DESCRIÇÃO | E41: UNIDADE | F41: COEFIC. | G41: CUSTO UNITÁRIO | I41: CUSTO TOTAL (A) + (B) + (C) + (D) + (E)
G42: DESONERADO | H42: NÃO DESONER. | I42: DESONERADO | J42: NÃO DESONER.
B43: COMPOSIÇÃO | C43: COMP 048_SEE | D43: HASTE ROSQUEADA "TIRANTE" 3/8" | E43: M | I43: 14.02 | J43: 15.39
B44: AGETOP_I | C44: 8 | D44: AJUDANTE | E44: h | F44: 0.4 | G44: 8.2 | H44: 9.51 | I44: 3.28 | J44: 3.8
B45: AGETOP_I | C45: 12 | D45: ELETRICISTA | E45: h | F45: 0.4 | G45: 13.4 | H45: 15.53 | I45: 5.36 | J45: 6.21
G46: 0 | H46: 0 | I46: 0 | J46: 0
B47: MÃO DE OBRA (B) - TOTAL | I47: 8.64 | J47: 10.01
B48: COTAÇÃO | C48: COT 012_SEE | D48: HASTE ROSQUEADA "TIRANTE" 3/8" | E48: M | F48: 1 | G48: 5.383333333 | H48: 5.383333333 | I48: 5.38 | J48: 5.38
G49: 0 | H49: 0 | I49: 0 | J49: 0
G50: 0 | H50: 0 | I50: 0 | J50: 0
B51: MATERIAL (C) - TOTAL | I51: 5.38 | J51: 5.38
A53: 37 | B53: FONTE | C53: CÓDIGO | D53: DESCRIÇÃO | E53: UNIDADE | F53: COEFIC. | G53: CUSTO UNITÁRIO | I53: CUSTO TOTAL (A) + (B) + (C) + (D) + (E)
G54: DESONERADO | H54: NÃO DESONER. | I54: DESONERADO | J54: NÃO DESONER.
B55: COMPOSIÇÃO | C55: COMP 037_SEE | D55: CAIXA DE INSPEÇÃO PVC 300X250MM+TP P/CX INSP GALV FOGO 300MM | E55: UN | I55: 44.44 | J55: 47.47
B56: AGETOP_I | C56: 8 | D56: AJUDANTE | E56: h | F56: 0.88 | G56: 8.2 | H56: 9.51 | I56: 7.22 | J56: 8.37
B57: AGETOP_I | C57: 12 | D57: ELETRICISTA | E57: h | F57: 0.88 | G57: 13.4 | H57: 15.53 | I57: 11.79 | J57: 13.67
G58: 0 | H58: 0 | I58: 0 | J58: 0
B59: MÃO DE OBRA (B) - TOTAL | I59: 19.01 | J59: 22.04
B60: COTAÇÃO | C60: COT 005_SEE | D60: CAIXA DE INSPEÇÃO PVC 300x250mm | E60: UN | F60: 1 | G60: 18.3 | H60: 18.3 | I60: 18.3 | J60: 18.3
B61: COTAÇÃO | C61: COT 006_SEE | D61: TAMPA PARA CAIXA DE INSPEÇÃO - GALVANIZADA FOGO 300 mm | E61: UN | F61: 1 | G61: 7.13 | H61: 7.13 | I61: 7.13 | J61: 7.13
G62: 0 | H62: 0 | I62: 0 | J62: 0
B63: MATERIAL (C) - TOTAL | I63: 25.43 | J63: 25.43
A65: 49 | B65: FONTE | C65: CÓDIGO | D65: DESCRIÇÃO | E65: UNIDADE | F65: COEFIC. | G65: CUSTO UNITÁRIO | I65: CUSTO TOTAL (A) + (B) + (C) + (D) + (E)
G66: DESONERADO | H66: NÃO DESONER. | I66: DESONERADO | J66: NÃO DESONER.
B67: COMPOSIÇÃO | C67: COMP 049_SEE | D67: PORCA SEXTAVADA 3/8" | E67: UN | I67: 0.2 | J67: 0.22
B68: AGETOP_I | C68: 8 | D68: AJUDANTE | E68: h | F68: 0.009 | G68: 8.2 | H68: 9.51 | I68: 0.07 | J68: 0.09
G69: 0 | H69: 0 | I69: 0 | J69: 0
G70: 0 | H70: 0 | I70: 0 | J70: 0
B71: MÃO DE OBRA (B) - TOTAL | I71: 0.07 | J71: 0.09
B72: COTAÇÃO | C72: COT 013_SEE | D72: PORCA SEXTAVADA 3/8" | E72: UN | F72: 1 | G72: 0.13 | H72: 0.13 | I72: 0.13 | J72: 0.13
G73: 0 | H73: 0 | I73: 0 | J73: 0
G74: 0 | H74: 0 | I74: 0 | J74: 0
B75: MATERIAL (C) - TOTAL | I75: 0.13 | J75: 0.13
A77: 387 | B77: FONTE | C77: CÓDIGO | D77: DESCRIÇÃO | E77: UNIDADE | F77: COEFIC. | G77: CUSTO UNITÁRIO | I77: CUSTO TOTAL (A) + (B) + (C) + (D) + (E)
G78: DESONERADO | H78: NÃO DESONER. | I78: DESONERADO | J78: NÃO DESONER.
B79: COMPOSIÇÃO | C79: COMP 387_SEE | D79: LÂMPADA LED TUBULAR 18W | E79: UN | I79: 22.28 | J79: 22.33
B80: AGETOP_I | C80: 8 | D80: AJUDANTE | E80: h | F80: 0.015 | G80: 8.2 | H80: 9.51 | I80: 0.12 | J80: 0.14
B81: AGETOP_I | C81: 12 | D81: ELETRICISTA | E81: h | F81: 0.015 | G81: 13.4 | H81: 15.53 | I81: 0.2 | J81: 0.23
G82: 0 | H82: 0 | I82: 0 | J82: 0
B83: MÃO DE OBRA (B) - TOTAL | I83: 0.32 | J83: 0.37
B84: COTAÇÃO | C84: COT 195_SEE | D84: LÂMPADA LED TUBULAR 18W | E84: UN | F84: 1 | G84: 21.96 | H84: 21.96 | I84: 21.96 | J84: 21.96
G85: 0 | H85: 0 | I85: 0 | J85: 0
G86: 0 | H86: 0 | I86: 0 | J86: 0
B87: MATERIAL (C) - TOTAL | I87: 21.96 | J87: 21.96
A89: 375 | B89: FONTE | C89: CÓDIGO | D89: DESCRIÇÃO | E89: UNIDADE | F89: COEFIC. | G89: CUSTO UNITÁRIO | I89: CUSTO TOTAL (A) + (B) + (C) + (D) + (E)
G90: DESONERADO | H90: NÃO DESONER. | I90: DESONERADO | J90: NÃO DESONER.
B91: COMPOSIÇÃO | C91: COMP 375_SEE | D91: REFLETOR DE LED HOLOFORTE 50W | E91: UN | I91: 81.83 | J91: 82.95
B92: AGETOP_I | C92: 12 | D92: ELETRICISTA | E92: h | F92: 0.4165 | G92: 13.4 | H92: 15.53 | I92: 5.58 | J92: 6.47
B93: AGETOP_I | C93: 8 | D93: AJUDANTE | E93: h | F93: 0.1735 | G93: 8.2 | H93: 9.51 | I93: 1.42 | J93: 1.65
G94: 0 | H94: 0 | I94: 0 | J94: 0
B95: MÃO DE OBRA (B) - TOTAL | I95: 7 | J95: 8.12
B96: COTAÇÃO | C96: COT 190_SEE | D96: REFLETOR DE LED HOLOFORTE 50W | E96: UN | F96: 1 | G96: 74.83 | H96: 74.83 | I96: 74.83 | J96: 74.83
G97: 0 | H97: 0 | I97: 0 | J97: 0
G98: 0 | H98: 0 | I98: 0 | J98: 0
B99: MATERIAL (C) - TOTAL | I99: 74.83 | J99: 74.83
A101: 17 | B101: FONTE | C101: CÓDIGO | D101: DESCRIÇÃO | E101: UNIDADE | F101: COEFIC. | G101: CUSTO UNITÁRIO | I101: CUSTO TOTAL (A) + (B) + (C) + (D) + (E)
G102: DESONERADO | H102: NÃO DESONER. | I102: DESONERADO | J102: NÃO DESONER.
B103: COMPOSIÇÃO | C103: COMP 017_SEE | D103: REDUCAO GIRATÓRIA TIPO STORZ LATAO P/ INST. PREDIAL COMBATE A INCENDIO ENGATE RAPIDO 2.1/2" X 1.1/2" | E103: UN | G103: - | H103: - | I103: 99.14 | J103: 99.69
B104: AGETOP_I | C104: 8 | D104: AJUDANTE | E104: h | F104: 0.16 | G104: 8.2 | H104: 9.51 | I104: 1.31 | J104: 1.52
B105: AGETOP_I | C105: 11 | D105: ENCANADOR | E105: h | F105: 0.16 | G105: 13.4 | H105: 15.53 | I105: 2.14 | J105: 2.48
G106: 0 | H106: 0 | I106: 0 | J106: 0
B107: MÃO DE OBRA (B) - TOTAL | I107: 3.45 | J107: 4
B108: SINAPI_I | C108: 20972 | D108: REDUCAO FIXA TIPO STORZ, ENGATE RAPIDO 2.1/2" X 1.1/2", EM LATAO, PARA INSTALACAO PREDIAL COMBATE A INCENDIO PREDIAL | E108: UN | F108: 1 | G108: 95.69 | H108: 95.69 | I108: 95.69 | J108: 95.69
G109: 0 | H109: 0 | I109: 0 | J109: 0
G110: 0 | H110: 0 | I110: 0 | J110: 0
B111: MATERIAL (C) - TOTAL | I111: 95.69 | J111: 95.69
A113: 18 | B113: FONTE | C113: CÓDIGO | D113: DESCRIÇÃO | E113: UNIDADE | F113: COEFIC. | G113: CUSTO UNITÁRIO | I113: CUSTO TOTAL (A) + (B) + (C) + (D) + (E)
G114: DESONERADO | H114: NÃO DESONER. | I114: DESONERADO | J114: NÃO DESONER.
B115: COMPOSIÇÃO | C115: COMP 018_SEE | D115: CHAVE DUPLA P/ CONEXÕES TIPO STORZ EM LATÃO ENGATE RÁPIDO 1 1/2" X 2 1/2" | E115: UN | G115: - | H115: - | I115: 14.76 | J115: 15.08
B116: AGETOP_I | C116: 11 | D116: ENCANADOR | E116: h | F116: 0.15 | G116: 13.4 | H116: 15.53 | I116: 2.01 | J116: 2.33
G117: 0 | H117: 0 | I117: 0 | J117: 0
G118: 0 | H118: 0 | I118: 0 | J118: 0
B119: MÃO DE OBRA (B) - TOTAL | I119: 2.01 | J119: 2.33
B120: SINAPI_I | C120: 20971 | D120: CHAVE DUPLA PARA CONEXOES TIPO STORZ, ENGATE RAPIDO 1 1/2" X 2 1/2", EM LATAO, PARA INSTALACAO PREDIAL COMBATE A INCENDIO | E120: UN | F120: 1 | G120: 12.75 | H120: 12.75 | I120: 12.75 | J120: 12.75
G121: 0 | H121: 0 | I121: 0 | J121: 0
G122: 0 | H122: 0 | I122: 0 | J122: 0
B123: MATERIAL (C) - TOTAL | I123: 12.75 | J123: 12.75
A125: 87 | B125: FONTE | C125: CÓDIGO | D125: DESCRIÇÃO | E125: UNIDADE | F125: COEFIC. | G125: CUSTO UNITÁRIO | I125: CUSTO TOTAL (A) + (B) + (C) + (D) + (E)
G126: DESONERADO | H126: NÃO DESONER. | I126: DESONERADO | J126: NÃO DESONER.
B127: COMPOSIÇÃO | C127: COMP 087_SEE | D127: REGISTRO DE GAVETA COM HASTE ASCENDENTE DE BRONZE 2 1/2" | E127: UN | I127: 257.3 | J127: 261.26
B128: AGETOP_I | C128: 8 | D128: AJUDANTE | E128: h | F128: 1.15 | G128: 8.2 | H128: 9.51 | I128: 9.43 | J128: 10.94
B129: AGETOP_I | C129: 11 | D129: ENCANADOR | E129: h | F129: 1.15 | G129: 13.4 | H129: 15.53 | I129: 15.41 | J129: 17.86
G130: 0 | H130: 0 | I130: 0 | J130: 0
B131: MÃO DE OBRA (B) - TOTAL | I131: 24.84 | J131: 28.8
B132: AGETOP_I | C132: H689 | D132: FITA VEDAROSCA 12 MM | E132: m | F132: 2.82 | G132: 0.28 | H132: 0.28 | I132: 0.79 | J132: 0.79
B133: COTAÇÃO | C133: COT 017_SEE | D133: REGISTRO DE GAVETA COM HASTE ASCENDENTE DE BRONZE 2 1/2" | E133: UN | F133: 1 | G133: 231.6666667 | H133: 231.6666667 | I133: 231.67 | J133: 231.67
G134: 0 | H134: 0 | I134: 0 | J134: 0
B135: MATERIAL (C) - TOTAL | I135: 232.46 | J135: 232.46
A137: 19 | B137: FONTE | C137: CÓDIGO | D137: DESCRIÇÃO | E137: UNIDADE | F137: COEFIC. | G137: CUSTO UNITÁRIO | I137: CUSTO TOTAL (A) + (B) + (C) + (D) + (E)
G138: DESONERADO | H138: NÃO DESONER. | I138: DESONERADO | J138: NÃO DESONER.
B139: COMPOSIÇÃO | C139: COMP 019_SEE | D139: TAMPÃO LATAO C/ CORRENTE P/ INSTALAÇÃO PREDIAL COMBATE A INCÊNDIO ENGATE RÁPIDO 1 1/2" | E139: UN | G139: - | H139: - | I139: 55.55 | J139: 56.07
B140: AGETOP_I | C140: 11 | D140: ENCANADOR | E140: h | F140: 0.15 | G140: 13.4 | H140: 15.53 | I140: 2.01 | J140: 2.33
B141: AGETOP_I | C141: 8 | D141: AJUDANTE | E141: h | F141: 0.15 | G141: 8.2 | H141: 9.51 | I141: 1.23 | J141: 1.43
G142: 0 | H142: 0 | I142: 0 | J142: 0
B143: MÃO DE OBRA (B) - TOTAL | I143: 3.24 | J143: 3.76
B144: SINAPI_I | C144: 20964 | D144: TAMPAO COM CORRENTE, EM LATAO, ENGATE RAPIDO 1 1/2", PARA INSTALACAO PREDIAL DE COMBATE A INCENDIO | E144: UN | F144: 1 | G144: 52.31 | H144: 52.31 | I144: 52.31 | J144: 52.31
G145: 0 | H145: 0 | I145: 0 | J145: 0
G146: 0 | H146: 0 | I146: 0 | J146: 0
B147: MATERIAL (C) - TOTAL | I147: 52.31 | J147: 52.31
A149: 30 | B149: FONTE | C149: CÓDIGO | D149: DESCRIÇÃO | E149: UNIDADE | F149: COEFIC. | G149: CUSTO UNITÁRIO | I149: CUSTO TOTAL (A) + (B) + (C) + (D) + (E)
G150: DESONERADO | H150: NÃO DESONER. | I150: DESONERADO | J150: NÃO DESONER.
B151: COMPOSIÇÃO | C151: COMP 030_SEE | D151: COTOVELO DE FERRO GALV. 90° X 2 1/2" | E151: UN | I151: 69.16 | J151: 72.33
B152: AGETOP_I | C152: 8 | D152: AJUDANTE | E152: h | F152: 0.92 | G152: 8.2 | H152: 9.51 | I152: 7.54 | J152: 8.75
B153: AGETOP_I | C153: 11 | D153: ENCANADOR | E153: h | F153: 0.92 | G153: 13.4 | H153: 15.53 | I153: 12.33 | J153: 14.29
B154: MÃO DE OBRA (B) - TOTAL | I154: 19.87 | J154: 23.04
B155: SINAPI_I | C155: 3470 | D155: COTOVELO 90 GRAUS DE FERRO GALVANIZADO, COM ROSCA BSP, DE 2 1/2" | E155: UN | F155: 1 | G155: 48.73 | H155: 48.73 | I155: 48.73 | J155: 48.73
B156: AGETOP_I | C156: H689 | D156: FITA VEDAROSCA 12 MM | E156: m | F156: 2 | G156: 0.28 | H156: 0.28 | I156: 0.56 | J156: 0.56
B157: MATERIAL (C) - TOTAL | I157: 49.29 | J157: 49.29
A159: 77 | B159: FONTE | C159: CÓDIGO | D159: DESCRIÇÃO | E159: UNIDADE | F159: COEFIC. | G159: CUSTO UNITÁRIO | I159: CUSTO TOTAL (A) + (B) + (C) + (D) + (E)
G160: DESONERADO | H160: NÃO DESONER. | I160: DESONERADO | J160: NÃO DESONER.
B161: COMPOSIÇÃO | C161: COMP 077_SEE | D161: UNIAO FERRO GALV C/ASSENTO CONICO BRONZE 2 1/2" | E161: UN | I161: 148.3 | J161: 149.67
B162: AGETOP_I | C162: 8 | D162: AJUDANTE | E162: h | F162: 0.4 | G162: 8.2 | H162: 9.51 | I162: 3.28 | J162: 3.8
B163: AGETOP_I | C163: 11 | D163: ENCANADOR | E163: h | F163: 0.4 | G163: 13.4 | H163: 15.53 | I163: 5.36 | J163: 6.21
B164: MÃO DE OBRA (B) - TOTAL | I164: 8.64 | J164: 10.01
B165: AGETOP_I | C165: H689 | D165: FITA VEDAROSCA 12 MM | E165: m | F165: 2.4 | G165: 0.28 | H165: 0.28 | I165: 0.67 | J165: 0.67
B166: SINAPI_I | C166: 12427 | D166: UNIAO COM ASSENTO CONICO DE BRONZE, DIAMETRO 2 1/2" | E166: UN | F166: 1 | G166: 138.99 | H166: 138.99 | I166: 138.99 | J166: 138.99
B167: MATERIAL (C) - TOTAL | I167: 139.66 | J167: 139.66
A169: 546 | B169: FONTE | C169: CÓDIGO | D169: DESCRIÇÃO | E169: UNID | F169: COEFIC. | G169: CUSTO UNITÁRIO | I169: CUSTO TOTAL (A) + (B) + (C) + (D) + (E)
G170: DESONERADO | H170: NÃO DESONER. | I170: DESONERADO | J170: NÃO DESONER.
B171: COMPOSIÇÃO | C171: COMP 546_SEE | D171: BUJÃO DE REBORDO 2.1/2" | E171: UN | F171: - | G171: - | H171: - | I171: 16.51 | J171: 16.76
B172: AGETOP_I | C172: 8 | D172: AJUDANTE | E172: h | F172: 0.07 | G172: 8.2 | H172: 9.51 | I172: 0.57 | J172: 0.67
B173: AGETOP_I | C173: 11 | D173: ENCANADOR | E173: h | F173: 0.07 | G173: 13.4 | H173: 15.53 | I173: 0.94 | J173: 1.09
G174: 0 | H174: 0 | I174: 0 | J174: 0
B175: MÃO DE OBRA (B) - TOTAL | I175: 1.51 | J175: 1.76
B176: COTAÇÃO | C176: COT 286_SEE | D176: BUJÃO DE REBORDO 2.1/2" | E176: UN | F176: 1 | G176: 15 | H176: 15 | I176: 15 | J176: 15
G177: 0 | H177: 0 | I177: 0 | J177: 0
G178: 0 | H178: 0 | I178: 0 | J178: 0
B179: MATERIAL (C) - TOTAL | I179: 15 | J179: 15
A181: 22 | B181: FONTE | C181: CÓDIGO | D181: DESCRIÇÃO | E181: UNIDADE | F181: COEFIC. | G181: CUSTO UNITÁRIO | I181: CUSTO TOTAL (A) + (B) + (C) + (D) + (E)
G182: DESONERADO | H182: NÃO DESONER. | I182: DESONERADO | J182: NÃO DESONER.
B183: COMPOSIÇÃO | C183: COMP 022_SEE | D183: TAMPÃO FOFO 40X50CM C/INSCRIÇÃO | E183: UN | G183: - | H183: - | I183: 199.83 | J183: 200.15
B184: AGETOP_I | C184: 11 | D184: ENCANADOR | E184: h | F184: 0.15 | G184: 13.4 | H184: 15.53 | I184: 2.01 | J184: 2.33
G185: 0 | H185: 0 | I185: 0 | J185: 0
G186: 0 | H186: 0 | I186: 0 | J186: 0
B187: MÃO DE OBRA (B) - TOTAL | I187: 2.01 | J187: 2.33
B188: SINAPI_I | C188: 11293 | D188: TAMPAO FOFO SIMPLES COM BASE, CLASSE A15 CARGA MAX 1,5 T, 400 X 500 MM, COM INSCRICAO INCENDIO | E188: UN | F188: 1 | G188: 197.82 | H188: 197.82 | I188: 197.82 | J188: 197.82
G189: 0 | H189: 0 | I189: 0 | J189: 0
G190: 0 | H190: 0 | I190: 0 | J190: 0
B191: MATERIAL (C) - TOTAL | I191: 197.82 | J191: 197.82
A193: 559 | B193: FONTE | C193: CÓDIGO | D193: DESCRIÇÃO | E193: UNID | F193: COEFIC. | G193: CUSTO UNITÁRIO | I193: CUSTO TOTAL (A) + (B) + (C) + (D) + (E)
G194: DESONERADO | H194: NÃO DESONER. | I194: DESONERADO | J194: NÃO DESONER.
B195: COMPOSIÇÃO | C195: COMP 559_SEE | D195: ADAPTADOR PARA CAIXA D´ÁGUA 150MM 2.1/2" | E195: UN | F195: - | G195: - | H195: - | I195: 101.95 | J195: 102.26
B196: AGETOP_I | C196: 11 | D196: ENCANADOR | E196: h | F196: 0.09 | G196: 13.4 | H196: 15.53 | I196: 1.21 | J196: 1.4
B197: AGETOP_I | C197: 8 | D197: AJUDANTE | E197: h | F197: 0.09 | G197: 8.2 | H197: 9.51 | I197: 0.74 | J197: 0.86
G198: 0 | H198: 0 | I198: 0 | J198: 0
B199: MÃO DE OBRA (B) - TOTAL | I199: 1.95 | J199: 2.26
B200: COTAÇÃO | C200: COT 304_SEE | D200: ADAPTADOR PARA CAIXA D´ÁGUA 150MM 2.1/2" | E200: UN | F200: 1 | G200: 100 | H200: 100 | I200: 100 | J200: 100
G201: 0 | H201: 0 | I201: 0 | J201: 0
G202: 0 | H202: 0 | I202: 0 | J202: 0
B203: MATERIAL (C) - TOTAL | I203: 100 | J203: 100
A205: 186 | B205: FONTE | C205: CÓDIGO | D205: DESCRIÇÃO | E205: UNIDADE | F205: COEFIC. | G205: CUSTO UNITÁRIO | I205: CUSTO TOTAL (A) + (B) + (C) + (D) + (E)
G206: DESONERADO | H206: NÃO DESONER. | I206: DESONERADO | J206: NÃO DESONER.
B207: COMPOSIÇÃO | C207: COMP 186_SEE | D207: BOTOEIRA BOMBA DE INCÊNDIO C/ MARTELO CONVENCIONAL/ ANALÓGICA | E207: UN | I207: 85.1 | J207: 88.54
B208: AGETOP_I | C208: 8 | D208: AJUDANTE | E208: h | F208: 1 | G208: 8.2 | H208: 9.51 | I208: 8.2 | J208: 9.51
B209: AGETOP_I | C209: 12 | D209: ELETRICISTA | E209: h | F209: 1 | G209: 13.4 | H209: 15.53 | I209: 13.4 | J209: 15.53
G210: 0 | H210: 0 | I210: 0 | J210: 0
B211: MÃO DE OBRA (B) - TOTAL | I211: 21.6 | J211: 25.04
B212: COTAÇÃO | C212: COT 088_SEE | D212: BOTOEIRA BOMBA DE INCÊNDIO C/ MARTELO CONVENCIONAL/ ANALÓGICA | E212: UN | F212: 1 | G212: 63.5 | H212: 63.5 | I212: 63.5 | J212: 63.5
G213: 0 | H213: 0 | I213: 0 | J213: 0
G214: 0 | H214: 0 | I214: 0 | J214: 0
B215: MATERIAL (C) - TOTAL | I215: 63.5 | J215: 63.5
A217: 188 | B217: FONTE | C217: CÓDIGO | D217: DESCRIÇÃO | E217: UNIDADE | F217: COEFIC. | G217: CUSTO UNITÁRIO | I217: CUSTO TOTAL (A) + (B) + (C) + (D) + (E)
G218: DESONERADO | H218: NÃO DESONER. | I218: DESONERADO | J218: NÃO DESONER.
B219: COMPOSIÇÃO | C219: COMP 188_SEE | D219: ACIONADOR MANUAL DE ALARME | E219: UN | I219: 100.61 | J219: 103.36
B220: AGETOP_I | C220: 8 | D220: AJUDANTE | E220: h | F220: 0.8 | G220: 8.2 | H220: 9.51 | I220: 6.56 | J220: 7.61
B221: AGETOP_I | C221: 12 | D221: ELETRICISTA | E221: h | F221: 0.8 | G221: 13.4 | H221: 15.53 | I221: 10.72 | J221: 12.42
G222: 0 | H222: 0 | I222: 0 | J222: 0
B223: MÃO DE OBRA (B) - TOTAL | I223: 17.28 | J223: 20.03
B224: COTAÇÃO | C224: COT 090_SEE | D224: ACIONADOR MANUAL DE ALARME | E224: UN | F224: 1 | G224: 83.33333333 | H224: 83.33333333 | I224: 83.33 | J224: 83.33
... 290 more rows
